{"text_format":"1","workbook":"xlsx","n_sheets":1,"sheets":["AbgleichGeneral"],"not_rendered":{"charts":0,"images":0,"macros":1,"external_links":0,"defined_names":2,"comments":0,"pivot_tables":0},"unopened":[],"bounds":{"document_bytes":16777216,"sheet_cells":100000,"rows_first":2000,"rows_last":500,"rows_between":2000,"halvings":0,"cell_chars":16384,"cell_head_chars":4096},"cells_cut":0,"cells_raw":0,"read":"whole","date_system":"1900"}

{"sheet":"AbgleichGeneral","index":0,"n_rows":273,"n_cols":9,"rows_kept":273,"cut":false,"hidden":false,"merged":[]}
[]
[null,"tblPersis",null,null,null,null,"tblstCat"]
[]
[]
[null,{"$f":"COUNTA(tblPersis[Nachname])","v":192},null,null,null,null,{"$f":"COUNTA(tblstCat[Nachname])","v":265}]
[]
[]
[null,"Nachname","Vorname","Gruppe",null,null,"Nachname","Vorname","Gruppe"]
[null,"Abbate","Jacqueline","BV - MS - EZ",null,null,"Abbate","Jaqueline",{"$f":"_xlfn.LET(_xlpm.rna,tblPersis[Nachname],_xlpm.rnb,tblPersis[Vorname],IFERROR(_xlfn._xlws.FILTER(tblPersis[Gruppe],(_xlpm.rna=tblstCat[[#This Row],[Nachname]])*(_xlpm.rnb=tblstCat[[#This Row],[Vorname]])),\"\"))","v":""}]
[null,"Abdi","Vanessa","aktiv",null,null,"Abdi","Vanessa",{"$f":"_xlfn.LET(_xlpm.rna,tblPersis[Nachname],_xlpm.rnb,tblPersis[Vorname],IFERROR(_xlfn._xlws.FILTER(tblPersis[Gruppe],(_xlpm.rna=tblstCat[[#This Row],[Nachname]])*(_xlpm.rnb=tblstCat[[#This Row],[Vorname]])),\"\"))","v":"aktiv"}]
[null,"Abt","Marina","aktiv",null,null,"Abt","Marina",{"$f":"_xlfn.LET(_xlpm.rna,tblPersis[Nachname],_xlpm.rnb,tblPersis[Vorname],IFERROR(_xlfn._xlws.FILTER(tblPersis[Gruppe],(_xlpm.rna=tblstCat[[#This Row],[Nachname]])*(_xlpm.rnb=tblstCat[[#This Row],[Vorname]])),\"\"))","v":"aktiv"}]
[null,"Achmüller","Hannelore","aktiv",null,null,"Achmüller","Hannelore",{"$f":"_xlfn.LET(_xlpm.rna,tblPersis[Nachname],_xlpm.rnb,tblPersis[Vorname],IFERROR(_xlfn._xlws.FILTER(tblPersis[Gruppe],(_xlpm.rna=tblstCat[[#This Row],[Nachname]])*(_xlpm.rnb=tblstCat[[#This Row],[Vorname]])),\"\"))","v":"aktiv"}]
[null,"Achterling","Denise","aktiv",null,null,"Achterling","Denise",{"$f":"_xlfn.LET(_xlpm.rna,tblPersis[Nachname],_xlpm.rnb,tblPersis[Vorname],IFERROR(_xlfn._xlws.FILTER(tblPersis[Gruppe],(_xlpm.rna=tblstCat[[#This Row],[Nachname]])*(_xlpm.rnb=tblstCat[[#This Row],[Vorname]])),\"\"))","v":"aktiv"}]
[null,"Adam","Svetlana","aktiv",null,null,"Adam","Svetlana",{"$f":"_xlfn.LET(_xlpm.rna,tblPersis[Nachname],_xlpm.rnb,tblPersis[Vorname],IFERROR(_xlfn._xlws.FILTER(tblPersis[Gruppe],(_xlpm.rna=tblstCat[[#This Row],[Nachname]])*(_xlpm.rnb=tblstCat[[#This Row],[Vorname]])),\"\"))","v":"aktiv"}]
[null,"Adam","Sylvia","aktiv",null,null,"Adam","Sylvia",{"$f":"_xlfn.LET(_xlpm.rna,tblPersis[Nachname],_xlpm.rnb,tblPersis[Vorname],IFERROR(_xlfn._xlws.FILTER(tblPersis[Gruppe],(_xlpm.rna=tblstCat[[#This Row],[Nachname]])*(_xlpm.rnb=tblstCat[[#This Row],[Vorname]])),\"\"))","v":"aktiv"}]
[null,"Adebayo","Petra","aktiv",null,null,"Adebayo","Petra",{"$f":"_xlfn.LET(_xlpm.rna,tblPersis[Nachname],_xlpm.rnb,tblPersis[Vorname],IFERROR(_xlfn._xlws.FILTER(tblPersis[Gruppe],(_xlpm.rna=tblstCat[[#This Row],[Nachname]])*(_xlpm.rnb=tblstCat[[#This Row],[Vorname]])),\"\"))","v":"aktiv"}]
[null,"Adu-Gyamfi","Vanessa","aktiv",null,null,"Adu-Gyamfi","Vanessa",{"$f":"_xlfn.LET(_xlpm.rna,tblPersis[Nachname],_xlpm.rnb,tblPersis[Vorname],IFERROR(_xlfn._xlws.FILTER(tblPersis[Gruppe],(_xlpm.rna=tblstCat[[#This Row],[Nachname]])*(_xlpm.rnb=tblstCat[[#This Row],[Vorname]])),\"\"))","v":"aktiv"}]
[null,"Ahl","Heike","aktiv",null,null,"Ahl","Heike",{"$f":"_xlfn.LET(_xlpm.rna,tblPersis[Nachname],_xlpm.rnb,tblPersis[Vorname],IFERROR(_xlfn._xlws.FILTER(tblPersis[Gruppe],(_xlpm.rna=tblstCat[[#This Row],[Nachname]])*(_xlpm.rnb=tblstCat[[#This Row],[Vorname]])),\"\"))","v":"aktiv"}]
[null,"Aigner","Stephanie","BV - MS - EZ",null,null,"Aigner","Stephanie",{"$f":"_xlfn.LET(_xlpm.rna,tblPersis[Nachname],_xlpm.rnb,tblPersis[Vorname],IFERROR(_xlfn._xlws.FILTER(tblPersis[Gruppe],(_xlpm.rna=tblstCat[[#This Row],[Nachname]])*(_xlpm.rnb=tblstCat[[#This Row],[Vorname]])),\"\"))","v":"BV - MS - EZ"}]
[null,"Akar","Berrin","aktiv",null,null,"Akar","Berrin",{"$f":"_xlfn.LET(_xlpm.rna,tblPersis[Nachname],_xlpm.rnb,tblPersis[Vorname],IFERROR(_xlfn._xlws.FILTER(tblPersis[Gruppe],(_xlpm.rna=tblstCat[[#This Row],[Nachname]])*(_xlpm.rnb=tblstCat[[#This Row],[Vorname]])),\"\"))","v":"aktiv"}]
[null,"Akkaya","Meryem","aktiv",null,null,"Akkaya","Meryem",{"$f":"_xlfn.LET(_xlpm.rna,tblPersis[Nachname],_xlpm.rnb,tblPersis[Vorname],IFERROR(_xlfn._xlws.FILTER(tblPersis[Gruppe],(_xlpm.rna=tblstCat[[#This Row],[Nachname]])*(_xlpm.rnb=tblstCat[[#This Row],[Vorname]])),\"\"))","v":"aktiv"}]
[null,"Akpinar","Esra","aktiv",null,null,"Akpinar","Esra",{"$f":"_xlfn.LET(_xlpm.rna,tblPersis[Nachname],_xlpm.rnb,tblPersis[Vorname],IFERROR(_xlfn._xlws.FILTER(tblPersis[Gruppe],(_xlpm.rna=tblstCat[[#This Row],[Nachname]])*(_xlpm.rnb=tblstCat[[#This Row],[Vorname]])),\"\"))","v":"aktiv"}]
[null,"Aktas","Mücella","aktiv",null,null,"Akram","Sibar",{"$f":"_xlfn.LET(_xlpm.rna,tblPersis[Nachname],_xlpm.rnb,tblPersis[Vorname],IFERROR(_xlfn._xlws.FILTER(tblPersis[Gruppe],(_xlpm.rna=tblstCat[[#This Row],[Nachname]])*(_xlpm.rnb=tblstCat[[#This Row],[Vorname]])),\"\"))","v":""}]
[null,"Alakir","Gamze","aktiv",null,null,"Aktas","Mücella",{"$f":"_xlfn.LET(_xlpm.rna,tblPersis[Nachname],_xlpm.rnb,tblPersis[Vorname],IFERROR(_xlfn._xlws.FILTER(tblPersis[Gruppe],(_xlpm.rna=tblstCat[[#This Row],[Nachname]])*(_xlpm.rnb=tblstCat[[#This Row],[Vorname]])),\"\"))","v":"aktiv"}]
[null,"Albert","Julia","BV - MS - EZ",null,null,"Alakir","Gamze",{"$f":"_xlfn.LET(_xlpm.rna,tblPersis[Nachname],_xlpm.rnb,tblPersis[Vorname],IFERROR(_xlfn._xlws.FILTER(tblPersis[Gruppe],(_xlpm.rna=tblstCat[[#This Row],[Nachname]])*(_xlpm.rnb=tblstCat[[#This Row],[Vorname]])),\"\"))","v":"aktiv"}]
[null,"Alekseeva","Olga","aktiv",null,null,"Albert","Julia",{"$f":"_xlfn.LET(_xlpm.rna,tblPersis[Nachname],_xlpm.rnb,tblPersis[Vorname],IFERROR(_xlfn._xlws.FILTER(tblPersis[Gruppe],(_xlpm.rna=tblstCat[[#This Row],[Nachname]])*(_xlpm.rnb=tblstCat[[#This Row],[Vorname]])),\"\"))","v":"BV - MS - EZ"}]
[null,"Alemdar Okutucu","Ayse","aktiv",null,null,"Alekseeva","Olga",{"$f":"_xlfn.LET(_xlpm.rna,tblPersis[Nachname],_xlpm.rnb,tblPersis[Vorname],IFERROR(_xlfn._xlws.FILTER(tblPersis[Gruppe],(_xlpm.rna=tblstCat[[#This Row],[Nachname]])*(_xlpm.rnb=tblstCat[[#This Row],[Vorname]])),\"\"))","v":"aktiv"}]
[null,"Aliu","Saranda","aktiv",null,null,"Alemdar Okutucu","Ayse",{"$f":"_xlfn.LET(_xlpm.rna,tblPersis[Nachname],_xlpm.rnb,tblPersis[Vorname],IFERROR(_xlfn._xlws.FILTER(tblPersis[Gruppe],(_xlpm.rna=tblstCat[[#This Row],[Nachname]])*(_xlpm.rnb=tblstCat[[#This Row],[Vorname]])),\"\"))","v":"aktiv"}]
[null,"Allerborn","Anna","aktiv",null,null,"Alexander","Sarah-Christina",{"$f":"_xlfn.LET(_xlpm.rna,tblPersis[Nachname],_xlpm.rnb,tblPersis[Vorname],IFERROR(_xlfn._xlws.FILTER(tblPersis[Gruppe],(_xlpm.rna=tblstCat[[#This Row],[Nachname]])*(_xlpm.rnb=tblstCat[[#This Row],[Vorname]])),\"\"))","v":""}]
[null,"Allertseder","Gabriele","aktiv",null,null,"Aliu","Saranda",{"$f":"_xlfn.LET(_xlpm.rna,tblPersis[Nachname],_xlpm.rnb,tblPersis[Vorname],IFERROR(_xlfn._xlws.FILTER(tblPersis[Gruppe],(_xlpm.rna=tblstCat[[#This Row],[Nachname]])*(_xlpm.rnb=tblstCat[[#This Row],[Vorname]])),\"\"))","v":"aktiv"}]
[null,"Almohammad","Alaa","aktiv",null,null,"Allerborn","Anna",{"$f":"_xlfn.LET(_xlpm.rna,tblPersis[Nachname],_xlpm.rnb,tblPersis[Vorname],IFERROR(_xlfn._xlws.FILTER(tblPersis[Gruppe],(_xlpm.rna=tblstCat[[#This Row],[Nachname]])*(_xlpm.rnb=tblstCat[[#This Row],[Vorname]])),\"\"))","v":"aktiv"}]
[null,"Alsheikh","Raneem","aktiv",null,null,"Allertseder","Gabriele",{"$f":"_xlfn.LET(_xlpm.rna,tblPersis[Nachname],_xlpm.rnb,tblPersis[Vorname],IFERROR(_xlfn._xlws.FILTER(tblPersis[Gruppe],(_xlpm.rna=tblstCat[[#This Row],[Nachname]])*(_xlpm.rnb=tblstCat[[#This Row],[Vorname]])),\"\"))","v":"aktiv"}]
[null,"Amani","Lale","aktiv",null,null,"Almohammad","Alaa",{"$f":"_xlfn.LET(_xlpm.rna,tblPersis[Nachname],_xlpm.rnb,tblPersis[Vorname],IFERROR(_xlfn._xlws.FILTER(tblPersis[Gruppe],(_xlpm.rna=tblstCat[[#This Row],[Nachname]])*(_xlpm.rnb=tblstCat[[#This Row],[Vorname]])),\"\"))","v":"aktiv"}]
[null,"Amelunxen","Sarah","aktiv",null,null,"Alnashi","Maximilian",{"$f":"_xlfn.LET(_xlpm.rna,tblPersis[Nachname],_xlpm.rnb,tblPersis[Vorname],IFERROR(_xlfn._xlws.FILTER(tblPersis[Gruppe],(_xlpm.rna=tblstCat[[#This Row],[Nachname]])*(_xlpm.rnb=tblstCat[[#This Row],[Vorname]])),\"\"))","v":""}]
[null,"Amir-Salehi","Neda","aktiv",null,null,"Alsheikh","Raneem",{"$f":"_xlfn.LET(_xlpm.rna,tblPersis[Nachname],_xlpm.rnb,tblPersis[Vorname],IFERROR(_xlfn._xlws.FILTER(tblPersis[Gruppe],(_xlpm.rna=tblstCat[[#This Row],[Nachname]])*(_xlpm.rnb=tblstCat[[#This Row],[Vorname]])),\"\"))","v":"aktiv"}]
[null,"Ammer","Doris","aktiv",null,null,"Amani","Lale",{"$f":"_xlfn.LET(_xlpm.rna,tblPersis[Nachname],_xlpm.rnb,tblPersis[Vorname],IFERROR(_xlfn._xlws.FILTER(tblPersis[Gruppe],(_xlpm.rna=tblstCat[[#This Row],[Nachname]])*(_xlpm.rnb=tblstCat[[#This Row],[Vorname]])),\"\"))","v":"aktiv"}]
[null,"Amrhein","Melanie","aktiv",null,null,"Amelunxen","Sarah",{"$f":"_xlfn.LET(_xlpm.rna,tblPersis[Nachname],_xlpm.rnb,tblPersis[Vorname],IFERROR(_xlfn._xlws.FILTER(tblPersis[Gruppe],(_xlpm.rna=tblstCat[[#This Row],[Nachname]])*(_xlpm.rnb=tblstCat[[#This Row],[Vorname]])),\"\"))","v":"aktiv"}]
[null,"Amthor","Renate","aktiv",null,null,"Amir-Salehi","Neda",{"$f":"_xlfn.LET(_xlpm.rna,tblPersis[Nachname],_xlpm.rnb,tblPersis[Vorname],IFERROR(_xlfn._xlws.FILTER(tblPersis[Gruppe],(_xlpm.rna=tblstCat[[#This Row],[Nachname]])*(_xlpm.rnb=tblstCat[[#This Row],[Vorname]])),\"\"))","v":"aktiv"}]
[null,"Ancona","Sabrina","aktiv",null,null,"Ammer","Doris",{"$f":"_xlfn.LET(_xlpm.rna,tblPersis[Nachname],_xlpm.rnb,tblPersis[Vorname],IFERROR(_xlfn._xlws.FILTER(tblPersis[Gruppe],(_xlpm.rna=tblstCat[[#This Row],[Nachname]])*(_xlpm.rnb=tblstCat[[#This Row],[Vorname]])),\"\"))","v":"aktiv"}]
[null,"Andrä","Birgit","aktiv",null,null,"Amrhein","Melanie",{"$f":"_xlfn.LET(_xlpm.rna,tblPersis[Nachname],_xlpm.rnb,tblPersis[Vorname],IFERROR(_xlfn._xlws.FILTER(tblPersis[Gruppe],(_xlpm.rna=tblstCat[[#This Row],[Nachname]])*(_xlpm.rnb=tblstCat[[#This Row],[Vorname]])),\"\"))","v":"aktiv"}]
[null,"Angerer","Franziska","aktiv",null,null,"Amthor","Renate",{"$f":"_xlfn.LET(_xlpm.rna,tblPersis[Nachname],_xlpm.rnb,tblPersis[Vorname],IFERROR(_xlfn._xlws.FILTER(tblPersis[Gruppe],(_xlpm.rna=tblstCat[[#This Row],[Nachname]])*(_xlpm.rnb=tblstCat[[#This Row],[Vorname]])),\"\"))","v":"aktiv"}]
[null,"Apretov","Marina","aktiv",null,null,"Groß","Anastasia",{"$f":"_xlfn.LET(_xlpm.rna,tblPersis[Nachname],_xlpm.rnb,tblPersis[Vorname],IFERROR(_xlfn._xlws.FILTER(tblPersis[Gruppe],(_xlpm.rna=tblstCat[[#This Row],[Nachname]])*(_xlpm.rnb=tblstCat[[#This Row],[Vorname]])),\"\"))","v":""}]
[null,"Arikoglu","Ezgi","aktiv",null,null,"Ancona","Sabrina",{"$f":"_xlfn.LET(_xlpm.rna,tblPersis[Nachname],_xlpm.rnb,tblPersis[Vorname],IFERROR(_xlfn._xlws.FILTER(tblPersis[Gruppe],(_xlpm.rna=tblstCat[[#This Row],[Nachname]])*(_xlpm.rnb=tblstCat[[#This Row],[Vorname]])),\"\"))","v":"aktiv"}]
[null,"Arlt","Elisa","aktiv",null,null,"Andrä","Birgit",{"$f":"_xlfn.LET(_xlpm.rna,tblPersis[Nachname],_xlpm.rnb,tblPersis[Vorname],IFERROR(_xlfn._xlws.FILTER(tblPersis[Gruppe],(_xlpm.rna=tblstCat[[#This Row],[Nachname]])*(_xlpm.rnb=tblstCat[[#This Row],[Vorname]])),\"\"))","v":"aktiv"}]
[null,"Arnhold","Susanne","aktiv",null,null,"Hildner","Andrea",{"$f":"_xlfn.LET(_xlpm.rna,tblPersis[Nachname],_xlpm.rnb,tblPersis[Vorname],IFERROR(_xlfn._xlws.FILTER(tblPersis[Gruppe],(_xlpm.rna=tblstCat[[#This Row],[Nachname]])*(_xlpm.rnb=tblstCat[[#This Row],[Vorname]])),\"\"))","v":""}]
[null,"Asenbeck","Sonja","BV - MS - EZ",null,null,"Angerer","Franziska",{"$f":"_xlfn.LET(_xlpm.rna,tblPersis[Nachname],_xlpm.rnb,tblPersis[Vorname],IFERROR(_xlfn._xlws.FILTER(tblPersis[Gruppe],(_xlpm.rna=tblstCat[[#This Row],[Nachname]])*(_xlpm.rnb=tblstCat[[#This Row],[Vorname]])),\"\"))","v":"aktiv"}]
[null,"Aslan","Ayten","aktiv",null,null,"Apretov","Marina",{"$f":"_xlfn.LET(_xlpm.rna,tblPersis[Nachname],_xlpm.rnb,tblPersis[Vorname],IFERROR(_xlfn._xlws.FILTER(tblPersis[Gruppe],(_xlpm.rna=tblstCat[[#This Row],[Nachname]])*(_xlpm.rnb=tblstCat[[#This Row],[Vorname]])),\"\"))","v":"aktiv"}]
[null,"Astraschewsky","Julia","aktiv",null,null,"Arikoglu","Ezgi",{"$f":"_xlfn.LET(_xlpm.rna,tblPersis[Nachname],_xlpm.rnb,tblPersis[Vorname],IFERROR(_xlfn._xlws.FILTER(tblPersis[Gruppe],(_xlpm.rna=tblstCat[[#This Row],[Nachname]])*(_xlpm.rnb=tblstCat[[#This Row],[Vorname]])),\"\"))","v":"aktiv"}]
[null,"Atmali","Merve","aktiv",null,null,"Arlt","Elisa",{"$f":"_xlfn.LET(_xlpm.rna,tblPersis[Nachname],_xlpm.rnb,tblPersis[Vorname],IFERROR(_xlfn._xlws.FILTER(tblPersis[Gruppe],(_xlpm.rna=tblstCat[[#This Row],[Nachname]])*(_xlpm.rnb=tblstCat[[#This Row],[Vorname]])),\"\"))","v":"aktiv"}]
[null,"Attenberger","Sabrina","aktiv",null,null,"Arnhold","Susanne",{"$f":"_xlfn.LET(_xlpm.rna,tblPersis[Nachname],_xlpm.rnb,tblPersis[Vorname],IFERROR(_xlfn._xlws.FILTER(tblPersis[Gruppe],(_xlpm.rna=tblstCat[[#This Row],[Nachname]])*(_xlpm.rnb=tblstCat[[#This Row],[Vorname]])),\"\"))","v":"aktiv"}]
[null,"Auerswald","Danielle","aktiv",null,null,"Aslan","Ayten",{"$f":"_xlfn.LET(_xlpm.rna,tblPersis[Nachname],_xlpm.rnb,tblPersis[Vorname],IFERROR(_xlfn._xlws.FILTER(tblPersis[Gruppe],(_xlpm.rna=tblstCat[[#This Row],[Nachname]])*(_xlpm.rnb=tblstCat[[#This Row],[Vorname]])),\"\"))","v":"aktiv"}]
[null,"Aval","Kerstin","aktiv",null,null,"Astraschewsky","Julia",{"$f":"_xlfn.LET(_xlpm.rna,tblPersis[Nachname],_xlpm.rnb,tblPersis[Vorname],IFERROR(_xlfn._xlws.FILTER(tblPersis[Gruppe],(_xlpm.rna=tblstCat[[#This Row],[Nachname]])*(_xlpm.rnb=tblstCat[[#This Row],[Vorname]])),\"\"))","v":"aktiv"}]
[null,"Aydin","Gözde","aktiv",null,null,"Atmali","Merve",{"$f":"_xlfn.LET(_xlpm.rna,tblPersis[Nachname],_xlpm.rnb,tblPersis[Vorname],IFERROR(_xlfn._xlws.FILTER(tblPersis[Gruppe],(_xlpm.rna=tblstCat[[#This Row],[Nachname]])*(_xlpm.rnb=tblstCat[[#This Row],[Vorname]])),\"\"))","v":"aktiv"}]
[null,"Bachmann","Elisabeth","aktiv",null,null,"Attenberger","Sabrina",{"$f":"_xlfn.LET(_xlpm.rna,tblPersis[Nachname],_xlpm.rnb,tblPersis[Vorname],IFERROR(_xlfn._xlws.FILTER(tblPersis[Gruppe],(_xlpm.rna=tblstCat[[#This Row],[Nachname]])*(_xlpm.rnb=tblstCat[[#This Row],[Vorname]])),\"\"))","v":"aktiv"}]
[null,"Bachmann","Viktoria","aktiv",null,null,"Auerswald","Danielle",{"$f":"_xlfn.LET(_xlpm.rna,tblPersis[Nachname],_xlpm.rnb,tblPersis[Vorname],IFERROR(_xlfn._xlws.FILTER(tblPersis[Gruppe],(_xlpm.rna=tblstCat[[#This Row],[Nachname]])*(_xlpm.rnb=tblstCat[[#This Row],[Vorname]])),\"\"))","v":"aktiv"}]
[null,"Bader","Gabriela","KLG",null,null,"Aval","Kerstin",{"$f":"_xlfn.LET(_xlpm.rna,tblPersis[Nachname],_xlpm.rnb,tblPersis[Vorname],IFERROR(_xlfn._xlws.FILTER(tblPersis[Gruppe],(_xlpm.rna=tblstCat[[#This Row],[Nachname]])*(_xlpm.rnb=tblstCat[[#This Row],[Vorname]])),\"\"))","v":"aktiv"}]
[null,"Bader","Marion","aktiv",null,null,"Aydin","gözde",{"$f":"_xlfn.LET(_xlpm.rna,tblPersis[Nachname],_xlpm.rnb,tblPersis[Vorname],IFERROR(_xlfn._xlws.FILTER(tblPersis[Gruppe],(_xlpm.rna=tblstCat[[#This Row],[Nachname]])*(_xlpm.rnb=tblstCat[[#This Row],[Vorname]])),\"\"))","v":"aktiv"}]
[null,"Baer","Helga","aktiv",null,null,"Bachmann","Elisabeth",{"$f":"_xlfn.LET(_xlpm.rna,tblPersis[Nachname],_xlpm.rnb,tblPersis[Vorname],IFERROR(_xlfn._xlws.FILTER(tblPersis[Gruppe],(_xlpm.rna=tblstCat[[#This Row],[Nachname]])*(_xlpm.rnb=tblstCat[[#This Row],[Vorname]])),\"\"))","v":"aktiv"}]
[null,"Baier","Kristin Doris","aktiv",null,null,"Bachmann","Viktoria",{"$f":"_xlfn.LET(_xlpm.rna,tblPersis[Nachname],_xlpm.rnb,tblPersis[Vorname],IFERROR(_xlfn._xlws.FILTER(tblPersis[Gruppe],(_xlpm.rna=tblstCat[[#This Row],[Nachname]])*(_xlpm.rnb=tblstCat[[#This Row],[Vorname]])),\"\"))","v":"aktiv"}]
[null,"Bajra","Marigona","BV - MS - EZ",null,null,"Bader","Gabriele",{"$f":"_xlfn.LET(_xlpm.rna,tblPersis[Nachname],_xlpm.rnb,tblPersis[Vorname],IFERROR(_xlfn._xlws.FILTER(tblPersis[Gruppe],(_xlpm.rna=tblstCat[[#This Row],[Nachname]])*(_xlpm.rnb=tblstCat[[#This Row],[Vorname]])),\"\"))","v":""}]
[null,"Bal","Dilek","aktiv",null,null,"Bader","Marion",{"$f":"_xlfn.LET(_xlpm.rna,tblPersis[Nachname],_xlpm.rnb,tblPersis[Vorname],IFERROR(_xlfn._xlws.FILTER(tblPersis[Gruppe],(_xlpm.rna=tblstCat[[#This Row],[Nachname]])*(_xlpm.rnb=tblstCat[[#This Row],[Vorname]])),\"\"))","v":"aktiv"}]
[null,"Bald","Sibylle","aktiv",null,null,"Baer","Helga",{"$f":"_xlfn.LET(_xlpm.rna,tblPersis[Nachname],_xlpm.rnb,tblPersis[Vorname],IFERROR(_xlfn._xlws.FILTER(tblPersis[Gruppe],(_xlpm.rna=tblstCat[[#This Row],[Nachname]])*(_xlpm.rnb=tblstCat[[#This Row],[Vorname]])),\"\"))","v":"aktiv"}]
[null,"Balk","Margit","aktiv",null,null,"Baier","Kristin",{"$f":"_xlfn.LET(_xlpm.rna,tblPersis[Nachname],_xlpm.rnb,tblPersis[Vorname],IFERROR(_xlfn._xlws.FILTER(tblPersis[Gruppe],(_xlpm.rna=tblstCat[[#This Row],[Nachname]])*(_xlpm.rnb=tblstCat[[#This Row],[Vorname]])),\"\"))","v":""}]
[null,"Baltzer","Lisa","aktiv",null,null,"Bajra","Marigona",{"$f":"_xlfn.LET(_xlpm.rna,tblPersis[Nachname],_xlpm.rnb,tblPersis[Vorname],IFERROR(_xlfn._xlws.FILTER(tblPersis[Gruppe],(_xlpm.rna=tblstCat[[#This Row],[Nachname]])*(_xlpm.rnb=tblstCat[[#This Row],[Vorname]])),\"\"))","v":"BV - MS - EZ"}]
[null,"Baltzer","Nikoline","aktiv",null,null,"Bal","Dilek",{"$f":"_xlfn.LET(_xlpm.rna,tblPersis[Nachname],_xlpm.rnb,tblPersis[Vorname],IFERROR(_xlfn._xlws.FILTER(tblPersis[Gruppe],(_xlpm.rna=tblstCat[[#This Row],[Nachname]])*(_xlpm.rnb=tblstCat[[#This Row],[Vorname]])),\"\"))","v":"aktiv"}]
[null,"Bär","Ina","aktiv",null,null,"Bald","Sibylle",{"$f":"_xlfn.LET(_xlpm.rna,tblPersis[Nachname],_xlpm.rnb,tblPersis[Vorname],IFERROR(_xlfn._xlws.FILTER(tblPersis[Gruppe],(_xlpm.rna=tblstCat[[#This Row],[Nachname]])*(_xlpm.rnb=tblstCat[[#This Row],[Vorname]])),\"\"))","v":"aktiv"}]
[null,"Barner","Nina","aktiv",null,null,"Balk","Margit",{"$f":"_xlfn.LET(_xlpm.rna,tblPersis[Nachname],_xlpm.rnb,tblPersis[Vorname],IFERROR(_xlfn._xlws.FILTER(tblPersis[Gruppe],(_xlpm.rna=tblstCat[[#This Row],[Nachname]])*(_xlpm.rnb=tblstCat[[#This Row],[Vorname]])),\"\"))","v":"aktiv"}]
[null,"Barnikel","Julia","aktiv",null,null,"Baltzer","Nikoline",{"$f":"_xlfn.LET(_xlpm.rna,tblPersis[Nachname],_xlpm.rnb,tblPersis[Vorname],IFERROR(_xlfn._xlws.FILTER(tblPersis[Gruppe],(_xlpm.rna=tblstCat[[#This Row],[Nachname]])*(_xlpm.rnb=tblstCat[[#This Row],[Vorname]])),\"\"))","v":"aktiv"}]
[null,"Barth","Ute","aktiv",null,null,"Baltzer","Lisa",{"$f":"_xlfn.LET(_xlpm.rna,tblPersis[Nachname],_xlpm.rnb,tblPersis[Vorname],IFERROR(_xlfn._xlws.FILTER(tblPersis[Gruppe],(_xlpm.rna=tblstCat[[#This Row],[Nachname]])*(_xlpm.rnb=tblstCat[[#This Row],[Vorname]])),\"\"))","v":"aktiv"}]
[null,"Barthel","Katrin","aktiv",null,null,"Bär","Ina",{"$f":"_xlfn.LET(_xlpm.rna,tblPersis[Nachname],_xlpm.rnb,tblPersis[Vorname],IFERROR(_xlfn._xlws.FILTER(tblPersis[Gruppe],(_xlpm.rna=tblstCat[[#This Row],[Nachname]])*(_xlpm.rnb=tblstCat[[#This Row],[Vorname]])),\"\"))","v":"aktiv"}]
[null,"Bartl","Christine","aktiv",null,null,"Barner","Nina",{"$f":"_xlfn.LET(_xlpm.rna,tblPersis[Nachname],_xlpm.rnb,tblPersis[Vorname],IFERROR(_xlfn._xlws.FILTER(tblPersis[Gruppe],(_xlpm.rna=tblstCat[[#This Row],[Nachname]])*(_xlpm.rnb=tblstCat[[#This Row],[Vorname]])),\"\"))","v":"aktiv"}]
[null,"Baselt","Viki","BV - MS - EZ",null,null,"Barnikel","Julia",{"$f":"_xlfn.LET(_xlpm.rna,tblPersis[Nachname],_xlpm.rnb,tblPersis[Vorname],IFERROR(_xlfn._xlws.FILTER(tblPersis[Gruppe],(_xlpm.rna=tblstCat[[#This Row],[Nachname]])*(_xlpm.rnb=tblstCat[[#This Row],[Vorname]])),\"\"))","v":"aktiv"}]
[null,"Batjaikin","Elisabeth","aktiv",null,null,"Barth","Ute",{"$f":"_xlfn.LET(_xlpm.rna,tblPersis[Nachname],_xlpm.rnb,tblPersis[Vorname],IFERROR(_xlfn._xlws.FILTER(tblPersis[Gruppe],(_xlpm.rna=tblstCat[[#This Row],[Nachname]])*(_xlpm.rnb=tblstCat[[#This Row],[Vorname]])),\"\"))","v":"aktiv"}]
[null,"Bauer","Celine","aktiv",null,null,"Barthel","Katrin",{"$f":"_xlfn.LET(_xlpm.rna,tblPersis[Nachname],_xlpm.rnb,tblPersis[Vorname],IFERROR(_xlfn._xlws.FILTER(tblPersis[Gruppe],(_xlpm.rna=tblstCat[[#This Row],[Nachname]])*(_xlpm.rnb=tblstCat[[#This Row],[Vorname]])),\"\"))","v":"aktiv"}]
[null,"Bauer","Christina","BV - MS - EZ",null,null,"Bartl","Christine",{"$f":"_xlfn.LET(_xlpm.rna,tblPersis[Nachname],_xlpm.rnb,tblPersis[Vorname],IFERROR(_xlfn._xlws.FILTER(tblPersis[Gruppe],(_xlpm.rna=tblstCat[[#This Row],[Nachname]])*(_xlpm.rnb=tblstCat[[#This Row],[Vorname]])),\"\"))","v":"aktiv"}]
[null,"Bauer","Doris","aktiv",null,null,"Baselt","Viki",{"$f":"_xlfn.LET(_xlpm.rna,tblPersis[Nachname],_xlpm.rnb,tblPersis[Vorname],IFERROR(_xlfn._xlws.FILTER(tblPersis[Gruppe],(_xlpm.rna=tblstCat[[#This Row],[Nachname]])*(_xlpm.rnb=tblstCat[[#This Row],[Vorname]])),\"\"))","v":"BV - MS - EZ"}]
[null,"Bauer","Esther-Maria","aktiv",null,null,"Batjaikin","Elisabeth",{"$f":"_xlfn.LET(_xlpm.rna,tblPersis[Nachname],_xlpm.rnb,tblPersis[Vorname],IFERROR(_xlfn._xlws.FILTER(tblPersis[Gruppe],(_xlpm.rna=tblstCat[[#This Row],[Nachname]])*(_xlpm.rnb=tblstCat[[#This Row],[Vorname]])),\"\"))","v":"aktiv"}]
[null,"Bauer","Katharina","aktiv",null,null,"Bauer","Celine",{"$f":"_xlfn.LET(_xlpm.rna,tblPersis[Nachname],_xlpm.rnb,tblPersis[Vorname],IFERROR(_xlfn._xlws.FILTER(tblPersis[Gruppe],(_xlpm.rna=tblstCat[[#This Row],[Nachname]])*(_xlpm.rnb=tblstCat[[#This Row],[Vorname]])),\"\"))","v":"aktiv"}]
[null,"Bauer","Lisa-Marie","aktiv",null,null,"Bauer","Christina",{"$f":"_xlfn.LET(_xlpm.rna,tblPersis[Nachname],_xlpm.rnb,tblPersis[Vorname],IFERROR(_xlfn._xlws.FILTER(tblPersis[Gruppe],(_xlpm.rna=tblstCat[[#This Row],[Nachname]])*(_xlpm.rnb=tblstCat[[#This Row],[Vorname]])),\"\"))","v":"BV - MS - EZ"}]
[null,"Bauereiß","Renate","aktiv",null,null,"Bauer","Doris",{"$f":"_xlfn.LET(_xlpm.rna,tblPersis[Nachname],_xlpm.rnb,tblPersis[Vorname],IFERROR(_xlfn._xlws.FILTER(tblPersis[Gruppe],(_xlpm.rna=tblstCat[[#This Row],[Nachname]])*(_xlpm.rnb=tblstCat[[#This Row],[Vorname]])),\"\"))","v":"aktiv"}]
[null,"Baum","Jessica","aktiv",null,null,"Bauer","Esther-Maria",{"$f":"_xlfn.LET(_xlpm.rna,tblPersis[Nachname],_xlpm.rnb,tblPersis[Vorname],IFERROR(_xlfn._xlws.FILTER(tblPersis[Gruppe],(_xlpm.rna=tblstCat[[#This Row],[Nachname]])*(_xlpm.rnb=tblstCat[[#This Row],[Vorname]])),\"\"))","v":"aktiv"}]
[null,"Baumann","Jennifer","aktiv",null,null,"Bauer","Katharina",{"$f":"_xlfn.LET(_xlpm.rna,tblPersis[Nachname],_xlpm.rnb,tblPersis[Vorname],IFERROR(_xlfn._xlws.FILTER(tblPersis[Gruppe],(_xlpm.rna=tblstCat[[#This Row],[Nachname]])*(_xlpm.rnb=tblstCat[[#This Row],[Vorname]])),\"\"))","v":"aktiv"}]
[null,"Baumann","Verena","aktiv",null,null,"Bauer","Lisa-Marie",{"$f":"_xlfn.LET(_xlpm.rna,tblPersis[Nachname],_xlpm.rnb,tblPersis[Vorname],IFERROR(_xlfn._xlws.FILTER(tblPersis[Gruppe],(_xlpm.rna=tblstCat[[#This Row],[Nachname]])*(_xlpm.rnb=tblstCat[[#This Row],[Vorname]])),\"\"))","v":"aktiv"}]
[null,"Baumer","Anita","aktiv",null,null,"Bauereiß","Renate",{"$f":"_xlfn.LET(_xlpm.rna,tblPersis[Nachname],_xlpm.rnb,tblPersis[Vorname],IFERROR(_xlfn._xlws.FILTER(tblPersis[Gruppe],(_xlpm.rna=tblstCat[[#This Row],[Nachname]])*(_xlpm.rnb=tblstCat[[#This Row],[Vorname]])),\"\"))","v":"aktiv"}]
[null,"Baumgartner","Alisa","aktiv",null,null,"Baum","Jessica",{"$f":"_xlfn.LET(_xlpm.rna,tblPersis[Nachname],_xlpm.rnb,tblPersis[Vorname],IFERROR(_xlfn._xlws.FILTER(tblPersis[Gruppe],(_xlpm.rna=tblstCat[[#This Row],[Nachname]])*(_xlpm.rnb=tblstCat[[#This Row],[Vorname]])),\"\"))","v":"aktiv"}]
[null,"Baumgartner","Franziska","aktiv",null,null,"Baumann","Jennifer",{"$f":"_xlfn.LET(_xlpm.rna,tblPersis[Nachname],_xlpm.rnb,tblPersis[Vorname],IFERROR(_xlfn._xlws.FILTER(tblPersis[Gruppe],(_xlpm.rna=tblstCat[[#This Row],[Nachname]])*(_xlpm.rnb=tblstCat[[#This Row],[Vorname]])),\"\"))","v":"aktiv"}]
[null,"Baumgartner","Heidi","aktiv",null,null,"Baumann","Verena",{"$f":"_xlfn.LET(_xlpm.rna,tblPersis[Nachname],_xlpm.rnb,tblPersis[Vorname],IFERROR(_xlfn._xlws.FILTER(tblPersis[Gruppe],(_xlpm.rna=tblstCat[[#This Row],[Nachname]])*(_xlpm.rnb=tblstCat[[#This Row],[Vorname]])),\"\"))","v":"aktiv"}]
[null,"Baumgartner","Julia","BV - MS - EZ",null,null,"Baumer","Anita",{"$f":"_xlfn.LET(_xlpm.rna,tblPersis[Nachname],_xlpm.rnb,tblPersis[Vorname],IFERROR(_xlfn._xlws.FILTER(tblPersis[Gruppe],(_xlpm.rna=tblstCat[[#This Row],[Nachname]])*(_xlpm.rnb=tblstCat[[#This Row],[Vorname]])),\"\"))","v":"aktiv"}]
[null,"Baumgartner","Karin","aktiv",null,null,"Baumgartner","Alisa",{"$f":"_xlfn.LET(_xlpm.rna,tblPersis[Nachname],_xlpm.rnb,tblPersis[Vorname],IFERROR(_xlfn._xlws.FILTER(tblPersis[Gruppe],(_xlpm.rna=tblstCat[[#This Row],[Nachname]])*(_xlpm.rnb=tblstCat[[#This Row],[Vorname]])),\"\"))","v":"aktiv"}]
[null,"Baumgartner","Nicole","aktiv",null,null,"Baumgartner","Franziska",{"$f":"_xlfn.LET(_xlpm.rna,tblPersis[Nachname],_xlpm.rnb,tblPersis[Vorname],IFERROR(_xlfn._xlws.FILTER(tblPersis[Gruppe],(_xlpm.rna=tblstCat[[#This Row],[Nachname]])*(_xlpm.rnb=tblstCat[[#This Row],[Vorname]])),\"\"))","v":"aktiv"}]
[null,"Baumüller","Birgit Anna Maria","aktiv",null,null,"Baumgartner","Heidi",{"$f":"_xlfn.LET(_xlpm.rna,tblPersis[Nachname],_xlpm.rnb,tblPersis[Vorname],IFERROR(_xlfn._xlws.FILTER(tblPersis[Gruppe],(_xlpm.rna=tblstCat[[#This Row],[Nachname]])*(_xlpm.rnb=tblstCat[[#This Row],[Vorname]])),\"\"))","v":"aktiv"}]
[null,"Baur","Katharina","aktiv",null,null,"Baumgartner","Julia",{"$f":"_xlfn.LET(_xlpm.rna,tblPersis[Nachname],_xlpm.rnb,tblPersis[Vorname],IFERROR(_xlfn._xlws.FILTER(tblPersis[Gruppe],(_xlpm.rna=tblstCat[[#This Row],[Nachname]])*(_xlpm.rnb=tblstCat[[#This Row],[Vorname]])),\"\"))","v":"BV - MS - EZ"}]
[null,"Bayer","Regina","aktiv",null,null,"Baumgartner","Karin",{"$f":"_xlfn.LET(_xlpm.rna,tblPersis[Nachname],_xlpm.rnb,tblPersis[Vorname],IFERROR(_xlfn._xlws.FILTER(tblPersis[Gruppe],(_xlpm.rna=tblstCat[[#This Row],[Nachname]])*(_xlpm.rnb=tblstCat[[#This Row],[Vorname]])),\"\"))","v":"aktiv"}]
[null,"Bayerl","Katharina","aktiv",null,null,"Baumgartner","Nicole",{"$f":"_xlfn.LET(_xlpm.rna,tblPersis[Nachname],_xlpm.rnb,tblPersis[Vorname],IFERROR(_xlfn._xlws.FILTER(tblPersis[Gruppe],(_xlpm.rna=tblstCat[[#This Row],[Nachname]])*(_xlpm.rnb=tblstCat[[#This Row],[Vorname]])),\"\"))","v":"aktiv"}]
[null,"Bayerle","Michaela","aktiv",null,null,"Baumüller","Birgit Anna Maria",{"$f":"_xlfn.LET(_xlpm.rna,tblPersis[Nachname],_xlpm.rnb,tblPersis[Vorname],IFERROR(_xlfn._xlws.FILTER(tblPersis[Gruppe],(_xlpm.rna=tblstCat[[#This Row],[Nachname]])*(_xlpm.rnb=tblstCat[[#This Row],[Vorname]])),\"\"))","v":"aktiv"}]
[null,"Bayri","Hacer","aktiv",null,null,"Baur","Katharina",{"$f":"_xlfn.LET(_xlpm.rna,tblPersis[Nachname],_xlpm.rnb,tblPersis[Vorname],IFERROR(_xlfn._xlws.FILTER(tblPersis[Gruppe],(_xlpm.rna=tblstCat[[#This Row],[Nachname]])*(_xlpm.rnb=tblstCat[[#This Row],[Vorname]])),\"\"))","v":"aktiv"}]
[null,"Beck","Christine","aktiv",null,null,"Bayer","Regina",{"$f":"_xlfn.LET(_xlpm.rna,tblPersis[Nachname],_xlpm.rnb,tblPersis[Vorname],IFERROR(_xlfn._xlws.FILTER(tblPersis[Gruppe],(_xlpm.rna=tblstCat[[#This Row],[Nachname]])*(_xlpm.rnb=tblstCat[[#This Row],[Vorname]])),\"\"))","v":"aktiv"}]
[null,"Beck","Julia","aktiv",null,null,"Bayerl","Katharina",{"$f":"_xlfn.LET(_xlpm.rna,tblPersis[Nachname],_xlpm.rnb,tblPersis[Vorname],IFERROR(_xlfn._xlws.FILTER(tblPersis[Gruppe],(_xlpm.rna=tblstCat[[#This Row],[Nachname]])*(_xlpm.rnb=tblstCat[[#This Row],[Vorname]])),\"\"))","v":"aktiv"}]
[null,"Becker","Julia","aktiv",null,null,"Bayerle","Michaela",{"$f":"_xlfn.LET(_xlpm.rna,tblPersis[Nachname],_xlpm.rnb,tblPersis[Vorname],IFERROR(_xlfn._xlws.FILTER(tblPersis[Gruppe],(_xlpm.rna=tblstCat[[#This Row],[Nachname]])*(_xlpm.rnb=tblstCat[[#This Row],[Vorname]])),\"\"))","v":"aktiv"}]
[null,"Becker","Petra","aktiv",null,null,"Beck","Christine",{"$f":"_xlfn.LET(_xlpm.rna,tblPersis[Nachname],_xlpm.rnb,tblPersis[Vorname],IFERROR(_xlfn._xlws.FILTER(tblPersis[Gruppe],(_xlpm.rna=tblstCat[[#This Row],[Nachname]])*(_xlpm.rnb=tblstCat[[#This Row],[Vorname]])),\"\"))","v":"aktiv"}]
[null,"Becker","Victoria","aktiv",null,null,"Beck","Julia",{"$f":"_xlfn.LET(_xlpm.rna,tblPersis[Nachname],_xlpm.rnb,tblPersis[Vorname],IFERROR(_xlfn._xlws.FILTER(tblPersis[Gruppe],(_xlpm.rna=tblstCat[[#This Row],[Nachname]])*(_xlpm.rnb=tblstCat[[#This Row],[Vorname]])),\"\"))","v":"aktiv"}]
[null,"Beckers","Susanne","aktiv",null,null,"Becker","Julia",{"$f":"_xlfn.LET(_xlpm.rna,tblPersis[Nachname],_xlpm.rnb,tblPersis[Vorname],IFERROR(_xlfn._xlws.FILTER(tblPersis[Gruppe],(_xlpm.rna=tblstCat[[#This Row],[Nachname]])*(_xlpm.rnb=tblstCat[[#This Row],[Vorname]])),\"\"))","v":"aktiv"}]
[null,"Beckert","Caroline","aktiv",null,null,"Becker","Petra",{"$f":"_xlfn.LET(_xlpm.rna,tblPersis[Nachname],_xlpm.rnb,tblPersis[Vorname],IFERROR(_xlfn._xlws.FILTER(tblPersis[Gruppe],(_xlpm.rna=tblstCat[[#This Row],[Nachname]])*(_xlpm.rnb=tblstCat[[#This Row],[Vorname]])),\"\"))","v":"aktiv"}]
[null,"Beer","Nina","aktiv",null,null,"Becker","Victoria",{"$f":"_xlfn.LET(_xlpm.rna,tblPersis[Nachname],_xlpm.rnb,tblPersis[Vorname],IFERROR(_xlfn._xlws.FILTER(tblPersis[Gruppe],(_xlpm.rna=tblstCat[[#This Row],[Nachname]])*(_xlpm.rnb=tblstCat[[#This Row],[Vorname]])),\"\"))","v":"aktiv"}]
[null,"Beißler","Anna","aktiv",null,null,"Beckers","Susanne",{"$f":"_xlfn.LET(_xlpm.rna,tblPersis[Nachname],_xlpm.rnb,tblPersis[Vorname],IFERROR(_xlfn._xlws.FILTER(tblPersis[Gruppe],(_xlpm.rna=tblstCat[[#This Row],[Nachname]])*(_xlpm.rnb=tblstCat[[#This Row],[Vorname]])),\"\"))","v":"aktiv"}]
[null,"Beitz","Michaela","aktiv",null,null,"Beckert","Caroline ",{"$f":"_xlfn.LET(_xlpm.rna,tblPersis[Nachname],_xlpm.rnb,tblPersis[Vorname],IFERROR(_xlfn._xlws.FILTER(tblPersis[Gruppe],(_xlpm.rna=tblstCat[[#This Row],[Nachname]])*(_xlpm.rnb=tblstCat[[#This Row],[Vorname]])),\"\"))","v":""}]
[null,"Bekrek","Emine","aktiv",null,null,"Beer","Nina",{"$f":"_xlfn.LET(_xlpm.rna,tblPersis[Nachname],_xlpm.rnb,tblPersis[Vorname],IFERROR(_xlfn._xlws.FILTER(tblPersis[Gruppe],(_xlpm.rna=tblstCat[[#This Row],[Nachname]])*(_xlpm.rnb=tblstCat[[#This Row],[Vorname]])),\"\"))","v":"aktiv"}]
[null,"Benatzky","Claudia","aktiv",null,null,"Beißler","Anna",{"$f":"_xlfn.LET(_xlpm.rna,tblPersis[Nachname],_xlpm.rnb,tblPersis[Vorname],IFERROR(_xlfn._xlws.FILTER(tblPersis[Gruppe],(_xlpm.rna=tblstCat[[#This Row],[Nachname]])*(_xlpm.rnb=tblstCat[[#This Row],[Vorname]])),\"\"))","v":"aktiv"}]
[null,"Bengart","Marina","aktiv",null,null,"Beitz","Michaela",{"$f":"_xlfn.LET(_xlpm.rna,tblPersis[Nachname],_xlpm.rnb,tblPersis[Vorname],IFERROR(_xlfn._xlws.FILTER(tblPersis[Gruppe],(_xlpm.rna=tblstCat[[#This Row],[Nachname]])*(_xlpm.rnb=tblstCat[[#This Row],[Vorname]])),\"\"))","v":"aktiv"}]
[null,"Beqaj","Edona","aktiv",null,null,"Bekrek","Emine",{"$f":"_xlfn.LET(_xlpm.rna,tblPersis[Nachname],_xlpm.rnb,tblPersis[Vorname],IFERROR(_xlfn._xlws.FILTER(tblPersis[Gruppe],(_xlpm.rna=tblstCat[[#This Row],[Nachname]])*(_xlpm.rnb=tblstCat[[#This Row],[Vorname]])),\"\"))","v":"aktiv"}]
[null,"Berg","Jenny","aktiv",null,null,"Benatzky","Claudia",{"$f":"_xlfn.LET(_xlpm.rna,tblPersis[Nachname],_xlpm.rnb,tblPersis[Vorname],IFERROR(_xlfn._xlws.FILTER(tblPersis[Gruppe],(_xlpm.rna=tblstCat[[#This Row],[Nachname]])*(_xlpm.rnb=tblstCat[[#This Row],[Vorname]])),\"\"))","v":"aktiv"}]
[null,"Berger","Stefanie","aktiv",null,null,"Bengart","Marina",{"$f":"_xlfn.LET(_xlpm.rna,tblPersis[Nachname],_xlpm.rnb,tblPersis[Vorname],IFERROR(_xlfn._xlws.FILTER(tblPersis[Gruppe],(_xlpm.rna=tblstCat[[#This Row],[Nachname]])*(_xlpm.rnb=tblstCat[[#This Row],[Vorname]])),\"\"))","v":"aktiv"}]
[null,"Berges","Ronja","aktiv",null,null,"Berg","Jenny",{"$f":"_xlfn.LET(_xlpm.rna,tblPersis[Nachname],_xlpm.rnb,tblPersis[Vorname],IFERROR(_xlfn._xlws.FILTER(tblPersis[Gruppe],(_xlpm.rna=tblstCat[[#This Row],[Nachname]])*(_xlpm.rnb=tblstCat[[#This Row],[Vorname]])),\"\"))","v":"aktiv"}]
[null,"Bergmann","Enya","aktiv",null,null,"Berger","Stefanie",{"$f":"_xlfn.LET(_xlpm.rna,tblPersis[Nachname],_xlpm.rnb,tblPersis[Vorname],IFERROR(_xlfn._xlws.FILTER(tblPersis[Gruppe],(_xlpm.rna=tblstCat[[#This Row],[Nachname]])*(_xlpm.rnb=tblstCat[[#This Row],[Vorname]])),\"\"))","v":"aktiv"}]
[null,"Bergmeier","Julia","aktiv",null,null,"Berges","Ronja",{"$f":"_xlfn.LET(_xlpm.rna,tblPersis[Nachname],_xlpm.rnb,tblPersis[Vorname],IFERROR(_xlfn._xlws.FILTER(tblPersis[Gruppe],(_xlpm.rna=tblstCat[[#This Row],[Nachname]])*(_xlpm.rnb=tblstCat[[#This Row],[Vorname]])),\"\"))","v":"aktiv"}]
[null,"Berisha","Artiola","BV - MS - EZ",null,null,"Bergmann","Enya",{"$f":"_xlfn.LET(_xlpm.rna,tblPersis[Nachname],_xlpm.rnb,tblPersis[Vorname],IFERROR(_xlfn._xlws.FILTER(tblPersis[Gruppe],(_xlpm.rna=tblstCat[[#This Row],[Nachname]])*(_xlpm.rnb=tblstCat[[#This Row],[Vorname]])),\"\"))","v":"aktiv"}]
[null,"Berktold","Lilli","aktiv",null,null,"Bergmeier","Julia",{"$f":"_xlfn.LET(_xlpm.rna,tblPersis[Nachname],_xlpm.rnb,tblPersis[Vorname],IFERROR(_xlfn._xlws.FILTER(tblPersis[Gruppe],(_xlpm.rna=tblstCat[[#This Row],[Nachname]])*(_xlpm.rnb=tblstCat[[#This Row],[Vorname]])),\"\"))","v":"aktiv"}]
[null,"Bernard","Ulrike","KLG",null,null,"Berisha","Artiola",{"$f":"_xlfn.LET(_xlpm.rna,tblPersis[Nachname],_xlpm.rnb,tblPersis[Vorname],IFERROR(_xlfn._xlws.FILTER(tblPersis[Gruppe],(_xlpm.rna=tblstCat[[#This Row],[Nachname]])*(_xlpm.rnb=tblstCat[[#This Row],[Vorname]])),\"\"))","v":"BV - MS - EZ"}]
[null,"Berninger","Sabrina","aktiv",null,null,"Berktold","Lilli",{"$f":"_xlfn.LET(_xlpm.rna,tblPersis[Nachname],_xlpm.rnb,tblPersis[Vorname],IFERROR(_xlfn._xlws.FILTER(tblPersis[Gruppe],(_xlpm.rna=tblstCat[[#This Row],[Nachname]])*(_xlpm.rnb=tblstCat[[#This Row],[Vorname]])),\"\"))","v":"aktiv"}]
[null,"Bernreuther-Haas","Anette","aktiv",null,null,"Bernard","Ulrike",{"$f":"_xlfn.LET(_xlpm.rna,tblPersis[Nachname],_xlpm.rnb,tblPersis[Vorname],IFERROR(_xlfn._xlws.FILTER(tblPersis[Gruppe],(_xlpm.rna=tblstCat[[#This Row],[Nachname]])*(_xlpm.rnb=tblstCat[[#This Row],[Vorname]])),\"\"))","v":"KLG"}]
[null,"Bertele","Astrid","aktiv",null,null,"Berninger","Sabrina",{"$f":"_xlfn.LET(_xlpm.rna,tblPersis[Nachname],_xlpm.rnb,tblPersis[Vorname],IFERROR(_xlfn._xlws.FILTER(tblPersis[Gruppe],(_xlpm.rna=tblstCat[[#This Row],[Nachname]])*(_xlpm.rnb=tblstCat[[#This Row],[Vorname]])),\"\"))","v":"aktiv"}]
[null,"Bertelshofer","Lara","aktiv",null,null,"Bernreuther-Haas","Anette",{"$f":"_xlfn.LET(_xlpm.rna,tblPersis[Nachname],_xlpm.rnb,tblPersis[Vorname],IFERROR(_xlfn._xlws.FILTER(tblPersis[Gruppe],(_xlpm.rna=tblstCat[[#This Row],[Nachname]])*(_xlpm.rnb=tblstCat[[#This Row],[Vorname]])),\"\"))","v":"aktiv"}]
[null,"Bestler-Gail","Dagmar","aktiv",null,null,"Bertele","Astrid",{"$f":"_xlfn.LET(_xlpm.rna,tblPersis[Nachname],_xlpm.rnb,tblPersis[Vorname],IFERROR(_xlfn._xlws.FILTER(tblPersis[Gruppe],(_xlpm.rna=tblstCat[[#This Row],[Nachname]])*(_xlpm.rnb=tblstCat[[#This Row],[Vorname]])),\"\"))","v":"aktiv"}]
[null,"Bezold","Andrea","BV - MS - EZ",null,null,"Bertelshofer","Lara",{"$f":"_xlfn.LET(_xlpm.rna,tblPersis[Nachname],_xlpm.rnb,tblPersis[Vorname],IFERROR(_xlfn._xlws.FILTER(tblPersis[Gruppe],(_xlpm.rna=tblstCat[[#This Row],[Nachname]])*(_xlpm.rnb=tblstCat[[#This Row],[Vorname]])),\"\"))","v":"aktiv"}]
[null,"Bezold","Andreas Florian","aktiv",null,null,"Bestler-Gail","Dagmar",{"$f":"_xlfn.LET(_xlpm.rna,tblPersis[Nachname],_xlpm.rnb,tblPersis[Vorname],IFERROR(_xlfn._xlws.FILTER(tblPersis[Gruppe],(_xlpm.rna=tblstCat[[#This Row],[Nachname]])*(_xlpm.rnb=tblstCat[[#This Row],[Vorname]])),\"\"))","v":"aktiv"}]
[null,"Biagini","Gudrun","aktiv",null,null,"Bezold","Andrea",{"$f":"_xlfn.LET(_xlpm.rna,tblPersis[Nachname],_xlpm.rnb,tblPersis[Vorname],IFERROR(_xlfn._xlws.FILTER(tblPersis[Gruppe],(_xlpm.rna=tblstCat[[#This Row],[Nachname]])*(_xlpm.rnb=tblstCat[[#This Row],[Vorname]])),\"\"))","v":"BV - MS - EZ"}]
[null,"Bias","Sabine","aktiv",null,null,"Bezold","Andreas",{"$f":"_xlfn.LET(_xlpm.rna,tblPersis[Nachname],_xlpm.rnb,tblPersis[Vorname],IFERROR(_xlfn._xlws.FILTER(tblPersis[Gruppe],(_xlpm.rna=tblstCat[[#This Row],[Nachname]])*(_xlpm.rnb=tblstCat[[#This Row],[Vorname]])),\"\"))","v":""}]
[null,"Bibo","Denise","aktiv",null,null,"Biagini","Gudrun",{"$f":"_xlfn.LET(_xlpm.rna,tblPersis[Nachname],_xlpm.rnb,tblPersis[Vorname],IFERROR(_xlfn._xlws.FILTER(tblPersis[Gruppe],(_xlpm.rna=tblstCat[[#This Row],[Nachname]])*(_xlpm.rnb=tblstCat[[#This Row],[Vorname]])),\"\"))","v":"aktiv"}]
[null,"Biedermann","Carina","aktiv",null,null,"Bias","Sabine",{"$f":"_xlfn.LET(_xlpm.rna,tblPersis[Nachname],_xlpm.rnb,tblPersis[Vorname],IFERROR(_xlfn._xlws.FILTER(tblPersis[Gruppe],(_xlpm.rna=tblstCat[[#This Row],[Nachname]])*(_xlpm.rnb=tblstCat[[#This Row],[Vorname]])),\"\"))","v":"aktiv"}]
[null,"Billinger","Melanie","aktiv",null,null,"Bibo","Denise",{"$f":"_xlfn.LET(_xlpm.rna,tblPersis[Nachname],_xlpm.rnb,tblPersis[Vorname],IFERROR(_xlfn._xlws.FILTER(tblPersis[Gruppe],(_xlpm.rna=tblstCat[[#This Row],[Nachname]])*(_xlpm.rnb=tblstCat[[#This Row],[Vorname]])),\"\"))","v":"aktiv"}]
[null,"Binder","Birgit","aktiv",null,null,"Biedermann","Carina",{"$f":"_xlfn.LET(_xlpm.rna,tblPersis[Nachname],_xlpm.rnb,tblPersis[Vorname],IFERROR(_xlfn._xlws.FILTER(tblPersis[Gruppe],(_xlpm.rna=tblstCat[[#This Row],[Nachname]])*(_xlpm.rnb=tblstCat[[#This Row],[Vorname]])),\"\"))","v":"aktiv"}]
[null,"Binder","Hedwig","aktiv",null,null,"Billinger","Melanie",{"$f":"_xlfn.LET(_xlpm.rna,tblPersis[Nachname],_xlpm.rnb,tblPersis[Vorname],IFERROR(_xlfn._xlws.FILTER(tblPersis[Gruppe],(_xlpm.rna=tblstCat[[#This Row],[Nachname]])*(_xlpm.rnb=tblstCat[[#This Row],[Vorname]])),\"\"))","v":"aktiv"}]
[null,"Binder","Sabine","aktiv",null,null,"Binder","Birgit",{"$f":"_xlfn.LET(_xlpm.rna,tblPersis[Nachname],_xlpm.rnb,tblPersis[Vorname],IFERROR(_xlfn._xlws.FILTER(tblPersis[Gruppe],(_xlpm.rna=tblstCat[[#This Row],[Nachname]])*(_xlpm.rnb=tblstCat[[#This Row],[Vorname]])),\"\"))","v":"aktiv"}]
[null,"Birkner","Nadine","aktiv",null,null,"Binder","Hedwig",{"$f":"_xlfn.LET(_xlpm.rna,tblPersis[Nachname],_xlpm.rnb,tblPersis[Vorname],IFERROR(_xlfn._xlws.FILTER(tblPersis[Gruppe],(_xlpm.rna=tblstCat[[#This Row],[Nachname]])*(_xlpm.rnb=tblstCat[[#This Row],[Vorname]])),\"\"))","v":"aktiv"}]
[null,"Birling","Chantal-Sara","aktiv",null,null,"Binder","Sabine",{"$f":"_xlfn.LET(_xlpm.rna,tblPersis[Nachname],_xlpm.rnb,tblPersis[Vorname],IFERROR(_xlfn._xlws.FILTER(tblPersis[Gruppe],(_xlpm.rna=tblstCat[[#This Row],[Nachname]])*(_xlpm.rnb=tblstCat[[#This Row],[Vorname]])),\"\"))","v":"aktiv"}]
[null,"Birmann","Simone","aktiv",null,null,"Bingölbali","Zeyneb",{"$f":"_xlfn.LET(_xlpm.rna,tblPersis[Nachname],_xlpm.rnb,tblPersis[Vorname],IFERROR(_xlfn._xlws.FILTER(tblPersis[Gruppe],(_xlpm.rna=tblstCat[[#This Row],[Nachname]])*(_xlpm.rnb=tblstCat[[#This Row],[Vorname]])),\"\"))","v":""}]
[null,"Bischoff","Heidi","aktiv",null,null,"Birkner","Nadine",{"$f":"_xlfn.LET(_xlpm.rna,tblPersis[Nachname],_xlpm.rnb,tblPersis[Vorname],IFERROR(_xlfn._xlws.FILTER(tblPersis[Gruppe],(_xlpm.rna=tblstCat[[#This Row],[Nachname]])*(_xlpm.rnb=tblstCat[[#This Row],[Vorname]])),\"\"))","v":"aktiv"}]
[null,"Biser","Marina","aktiv",null,null,"Birling","Chantal-Sara",{"$f":"_xlfn.LET(_xlpm.rna,tblPersis[Nachname],_xlpm.rnb,tblPersis[Vorname],IFERROR(_xlfn._xlws.FILTER(tblPersis[Gruppe],(_xlpm.rna=tblstCat[[#This Row],[Nachname]])*(_xlpm.rnb=tblstCat[[#This Row],[Vorname]])),\"\"))","v":"aktiv"}]
[null,"Bitikli","Ayse","aktiv",null,null,"Birmann","Simone",{"$f":"_xlfn.LET(_xlpm.rna,tblPersis[Nachname],_xlpm.rnb,tblPersis[Vorname],IFERROR(_xlfn._xlws.FILTER(tblPersis[Gruppe],(_xlpm.rna=tblstCat[[#This Row],[Nachname]])*(_xlpm.rnb=tblstCat[[#This Row],[Vorname]])),\"\"))","v":"aktiv"}]
[null,"Bittner","Andrea","BV - MS - EZ",null,null,"Bischoff","Heidi",{"$f":"_xlfn.LET(_xlpm.rna,tblPersis[Nachname],_xlpm.rnb,tblPersis[Vorname],IFERROR(_xlfn._xlws.FILTER(tblPersis[Gruppe],(_xlpm.rna=tblstCat[[#This Row],[Nachname]])*(_xlpm.rnb=tblstCat[[#This Row],[Vorname]])),\"\"))","v":"aktiv"}]
[null,"Blank","Andrea","aktiv",null,null,"Biser","Marina",{"$f":"_xlfn.LET(_xlpm.rna,tblPersis[Nachname],_xlpm.rnb,tblPersis[Vorname],IFERROR(_xlfn._xlws.FILTER(tblPersis[Gruppe],(_xlpm.rna=tblstCat[[#This Row],[Nachname]])*(_xlpm.rnb=tblstCat[[#This Row],[Vorname]])),\"\"))","v":"aktiv"}]
[null,"Blank","Melanie","aktiv",null,null,"Bitikli","Ayse",{"$f":"_xlfn.LET(_xlpm.rna,tblPersis[Nachname],_xlpm.rnb,tblPersis[Vorname],IFERROR(_xlfn._xlws.FILTER(tblPersis[Gruppe],(_xlpm.rna=tblstCat[[#This Row],[Nachname]])*(_xlpm.rnb=tblstCat[[#This Row],[Vorname]])),\"\"))","v":"aktiv"}]
[null,"Blank-Dobliar","Evelyn","aktiv",null,null,"Bittner","Andrea ",{"$f":"_xlfn.LET(_xlpm.rna,tblPersis[Nachname],_xlpm.rnb,tblPersis[Vorname],IFERROR(_xlfn._xlws.FILTER(tblPersis[Gruppe],(_xlpm.rna=tblstCat[[#This Row],[Nachname]])*(_xlpm.rnb=tblstCat[[#This Row],[Vorname]])),\"\"))","v":""}]
[null,"Blasel","Vivien","aktiv",null,null,"Blank","Andrea",{"$f":"_xlfn.LET(_xlpm.rna,tblPersis[Nachname],_xlpm.rnb,tblPersis[Vorname],IFERROR(_xlfn._xlws.FILTER(tblPersis[Gruppe],(_xlpm.rna=tblstCat[[#This Row],[Nachname]])*(_xlpm.rnb=tblstCat[[#This Row],[Vorname]])),\"\"))","v":"aktiv"}]
[null,"Bleier","Nicoletta","aktiv",null,null,"Blank","Melanie",{"$f":"_xlfn.LET(_xlpm.rna,tblPersis[Nachname],_xlpm.rnb,tblPersis[Vorname],IFERROR(_xlfn._xlws.FILTER(tblPersis[Gruppe],(_xlpm.rna=tblstCat[[#This Row],[Nachname]])*(_xlpm.rnb=tblstCat[[#This Row],[Vorname]])),\"\"))","v":"aktiv"}]
[null,"Bleifuß","Laura","aktiv",null,null,"Blank-Dobliar","Evelyn",{"$f":"_xlfn.LET(_xlpm.rna,tblPersis[Nachname],_xlpm.rnb,tblPersis[Vorname],IFERROR(_xlfn._xlws.FILTER(tblPersis[Gruppe],(_xlpm.rna=tblstCat[[#This Row],[Nachname]])*(_xlpm.rnb=tblstCat[[#This Row],[Vorname]])),\"\"))","v":"aktiv"}]
[null,"Blischtch","Nicole","aktiv",null,null,"Blasel","Vivien",{"$f":"_xlfn.LET(_xlpm.rna,tblPersis[Nachname],_xlpm.rnb,tblPersis[Vorname],IFERROR(_xlfn._xlws.FILTER(tblPersis[Gruppe],(_xlpm.rna=tblstCat[[#This Row],[Nachname]])*(_xlpm.rnb=tblstCat[[#This Row],[Vorname]])),\"\"))","v":"aktiv"}]
[null,"Blöchl","Magdalena","aktiv",null,null,"Bleier","Nicoletta",{"$f":"_xlfn.LET(_xlpm.rna,tblPersis[Nachname],_xlpm.rnb,tblPersis[Vorname],IFERROR(_xlfn._xlws.FILTER(tblPersis[Gruppe],(_xlpm.rna=tblstCat[[#This Row],[Nachname]])*(_xlpm.rnb=tblstCat[[#This Row],[Vorname]])),\"\"))","v":"aktiv"}]
[null,"Blum","Caroline","aktiv",null,null,"Bleifuß","Laura",{"$f":"_xlfn.LET(_xlpm.rna,tblPersis[Nachname],_xlpm.rnb,tblPersis[Vorname],IFERROR(_xlfn._xlws.FILTER(tblPersis[Gruppe],(_xlpm.rna=tblstCat[[#This Row],[Nachname]])*(_xlpm.rnb=tblstCat[[#This Row],[Vorname]])),\"\"))","v":"aktiv"}]
[null,"Böhme","Aline","aktiv",null,null,"Blischtch","Nicole",{"$f":"_xlfn.LET(_xlpm.rna,tblPersis[Nachname],_xlpm.rnb,tblPersis[Vorname],IFERROR(_xlfn._xlws.FILTER(tblPersis[Gruppe],(_xlpm.rna=tblstCat[[#This Row],[Nachname]])*(_xlpm.rnb=tblstCat[[#This Row],[Vorname]])),\"\"))","v":"aktiv"}]
[null,"Bohn","Cordula","aktiv",null,null,"Blöchl","Magdalena",{"$f":"_xlfn.LET(_xlpm.rna,tblPersis[Nachname],_xlpm.rnb,tblPersis[Vorname],IFERROR(_xlfn._xlws.FILTER(tblPersis[Gruppe],(_xlpm.rna=tblstCat[[#This Row],[Nachname]])*(_xlpm.rnb=tblstCat[[#This Row],[Vorname]])),\"\"))","v":"aktiv"}]
[null,"Bohn","Mirjam","aktiv",null,null,"Blum","Caroline",{"$f":"_xlfn.LET(_xlpm.rna,tblPersis[Nachname],_xlpm.rnb,tblPersis[Vorname],IFERROR(_xlfn._xlws.FILTER(tblPersis[Gruppe],(_xlpm.rna=tblstCat[[#This Row],[Nachname]])*(_xlpm.rnb=tblstCat[[#This Row],[Vorname]])),\"\"))","v":"aktiv"}]
[null,"Bohnekamp","Till","aktiv",null,null,"Böhme","Aline",{"$f":"_xlfn.LET(_xlpm.rna,tblPersis[Nachname],_xlpm.rnb,tblPersis[Vorname],IFERROR(_xlfn._xlws.FILTER(tblPersis[Gruppe],(_xlpm.rna=tblstCat[[#This Row],[Nachname]])*(_xlpm.rnb=tblstCat[[#This Row],[Vorname]])),\"\"))","v":"aktiv"}]
[null,"Boll","Franziska","aktiv",null,null,"Bohn","Cordula",{"$f":"_xlfn.LET(_xlpm.rna,tblPersis[Nachname],_xlpm.rnb,tblPersis[Vorname],IFERROR(_xlfn._xlws.FILTER(tblPersis[Gruppe],(_xlpm.rna=tblstCat[[#This Row],[Nachname]])*(_xlpm.rnb=tblstCat[[#This Row],[Vorname]])),\"\"))","v":"aktiv"}]
[null,"Borgwardt","Daniela Alexandra","aktiv",null,null,"Bohn","Mirjam",{"$f":"_xlfn.LET(_xlpm.rna,tblPersis[Nachname],_xlpm.rnb,tblPersis[Vorname],IFERROR(_xlfn._xlws.FILTER(tblPersis[Gruppe],(_xlpm.rna=tblstCat[[#This Row],[Nachname]])*(_xlpm.rnb=tblstCat[[#This Row],[Vorname]])),\"\"))","v":"aktiv"}]
[null,"Bork","Miriam","aktiv",null,null,"Bohnekamp","Till",{"$f":"_xlfn.LET(_xlpm.rna,tblPersis[Nachname],_xlpm.rnb,tblPersis[Vorname],IFERROR(_xlfn._xlws.FILTER(tblPersis[Gruppe],(_xlpm.rna=tblstCat[[#This Row],[Nachname]])*(_xlpm.rnb=tblstCat[[#This Row],[Vorname]])),\"\"))","v":"aktiv"}]
[null,"Borner","Ulrike","aktiv",null,null,"Borgwardt","Daniela Alexandra",{"$f":"_xlfn.LET(_xlpm.rna,tblPersis[Nachname],_xlpm.rnb,tblPersis[Vorname],IFERROR(_xlfn._xlws.FILTER(tblPersis[Gruppe],(_xlpm.rna=tblstCat[[#This Row],[Nachname]])*(_xlpm.rnb=tblstCat[[#This Row],[Vorname]])),\"\"))","v":"aktiv"}]
[null,"Bornschlegel-Stahl","Eva","aktiv",null,null,"Bork","Miriam",{"$f":"_xlfn.LET(_xlpm.rna,tblPersis[Nachname],_xlpm.rnb,tblPersis[Vorname],IFERROR(_xlfn._xlws.FILTER(tblPersis[Gruppe],(_xlpm.rna=tblstCat[[#This Row],[Nachname]])*(_xlpm.rnb=tblstCat[[#This Row],[Vorname]])),\"\"))","v":"aktiv"}]
[null,"Botschan","Isabel","BV - MS - EZ",null,null,"Borner","Ulrike",{"$f":"_xlfn.LET(_xlpm.rna,tblPersis[Nachname],_xlpm.rnb,tblPersis[Vorname],IFERROR(_xlfn._xlws.FILTER(tblPersis[Gruppe],(_xlpm.rna=tblstCat[[#This Row],[Nachname]])*(_xlpm.rnb=tblstCat[[#This Row],[Vorname]])),\"\"))","v":"aktiv"}]
[null,"Böttcher","Julia","aktiv",null,null,"Bornschlegel-Stahl","Eva",{"$f":"_xlfn.LET(_xlpm.rna,tblPersis[Nachname],_xlpm.rnb,tblPersis[Vorname],IFERROR(_xlfn._xlws.FILTER(tblPersis[Gruppe],(_xlpm.rna=tblstCat[[#This Row],[Nachname]])*(_xlpm.rnb=tblstCat[[#This Row],[Vorname]])),\"\"))","v":"aktiv"}]
[null,"Boussad","Ute","aktiv",null,null,"Botschan","Isabel",{"$f":"_xlfn.LET(_xlpm.rna,tblPersis[Nachname],_xlpm.rnb,tblPersis[Vorname],IFERROR(_xlfn._xlws.FILTER(tblPersis[Gruppe],(_xlpm.rna=tblstCat[[#This Row],[Nachname]])*(_xlpm.rnb=tblstCat[[#This Row],[Vorname]])),\"\"))","v":"BV - MS - EZ"}]
[null,"Brand","Gabi","aktiv",null,null,"Böttcher","Julia",{"$f":"_xlfn.LET(_xlpm.rna,tblPersis[Nachname],_xlpm.rnb,tblPersis[Vorname],IFERROR(_xlfn._xlws.FILTER(tblPersis[Gruppe],(_xlpm.rna=tblstCat[[#This Row],[Nachname]])*(_xlpm.rnb=tblstCat[[#This Row],[Vorname]])),\"\"))","v":"aktiv"}]
[null,"Brandt","Gisela","aktiv",null,null,"Boussad","Ute",{"$f":"_xlfn.LET(_xlpm.rna,tblPersis[Nachname],_xlpm.rnb,tblPersis[Vorname],IFERROR(_xlfn._xlws.FILTER(tblPersis[Gruppe],(_xlpm.rna=tblstCat[[#This Row],[Nachname]])*(_xlpm.rnb=tblstCat[[#This Row],[Vorname]])),\"\"))","v":"aktiv"}]
[null,"Braun","Bettina","aktiv",null,null,"Brand","Gabi",{"$f":"_xlfn.LET(_xlpm.rna,tblPersis[Nachname],_xlpm.rnb,tblPersis[Vorname],IFERROR(_xlfn._xlws.FILTER(tblPersis[Gruppe],(_xlpm.rna=tblstCat[[#This Row],[Nachname]])*(_xlpm.rnb=tblstCat[[#This Row],[Vorname]])),\"\"))","v":"aktiv"}]
[null,"Braun","Patricia","aktiv",null,null,"Brandt","Gisela",{"$f":"_xlfn.LET(_xlpm.rna,tblPersis[Nachname],_xlpm.rnb,tblPersis[Vorname],IFERROR(_xlfn._xlws.FILTER(tblPersis[Gruppe],(_xlpm.rna=tblstCat[[#This Row],[Nachname]])*(_xlpm.rnb=tblstCat[[#This Row],[Vorname]])),\"\"))","v":"aktiv"}]
[null,"Brauner","Amelie","aktiv",null,null,"Braun","Bettina",{"$f":"_xlfn.LET(_xlpm.rna,tblPersis[Nachname],_xlpm.rnb,tblPersis[Vorname],IFERROR(_xlfn._xlws.FILTER(tblPersis[Gruppe],(_xlpm.rna=tblstCat[[#This Row],[Nachname]])*(_xlpm.rnb=tblstCat[[#This Row],[Vorname]])),\"\"))","v":"aktiv"}]
[null,"Bren","Ann-Kathrin","BV - MS - EZ",null,null,"Braun","Patricia",{"$f":"_xlfn.LET(_xlpm.rna,tblPersis[Nachname],_xlpm.rnb,tblPersis[Vorname],IFERROR(_xlfn._xlws.FILTER(tblPersis[Gruppe],(_xlpm.rna=tblstCat[[#This Row],[Nachname]])*(_xlpm.rnb=tblstCat[[#This Row],[Vorname]])),\"\"))","v":"aktiv"}]
[null,"Breuer","Anna","aktiv",null,null,"Brauner","Amelie",{"$f":"_xlfn.LET(_xlpm.rna,tblPersis[Nachname],_xlpm.rnb,tblPersis[Vorname],IFERROR(_xlfn._xlws.FILTER(tblPersis[Gruppe],(_xlpm.rna=tblstCat[[#This Row],[Nachname]])*(_xlpm.rnb=tblstCat[[#This Row],[Vorname]])),\"\"))","v":"aktiv"}]
[null,"Breuer-Meyer","Ursula","aktiv",null,null,"Bren","Ann-Kathrin",{"$f":"_xlfn.LET(_xlpm.rna,tblPersis[Nachname],_xlpm.rnb,tblPersis[Vorname],IFERROR(_xlfn._xlws.FILTER(tblPersis[Gruppe],(_xlpm.rna=tblstCat[[#This Row],[Nachname]])*(_xlpm.rnb=tblstCat[[#This Row],[Vorname]])),\"\"))","v":"BV - MS - EZ"}]
[null,"Breuil","Alexandra","aktiv",null,null,"Breuer","Anna",{"$f":"_xlfn.LET(_xlpm.rna,tblPersis[Nachname],_xlpm.rnb,tblPersis[Vorname],IFERROR(_xlfn._xlws.FILTER(tblPersis[Gruppe],(_xlpm.rna=tblstCat[[#This Row],[Nachname]])*(_xlpm.rnb=tblstCat[[#This Row],[Vorname]])),\"\"))","v":"aktiv"}]
[null,"Breyer","Sophia","aktiv",null,null,"Breuer-Meyer","Ursula",{"$f":"_xlfn.LET(_xlpm.rna,tblPersis[Nachname],_xlpm.rnb,tblPersis[Vorname],IFERROR(_xlfn._xlws.FILTER(tblPersis[Gruppe],(_xlpm.rna=tblstCat[[#This Row],[Nachname]])*(_xlpm.rnb=tblstCat[[#This Row],[Vorname]])),\"\"))","v":"aktiv"}]
[null,"Brhane Getahun","Tsion","aktiv",null,null,"Breuil","Alexandra",{"$f":"_xlfn.LET(_xlpm.rna,tblPersis[Nachname],_xlpm.rnb,tblPersis[Vorname],IFERROR(_xlfn._xlws.FILTER(tblPersis[Gruppe],(_xlpm.rna=tblstCat[[#This Row],[Nachname]])*(_xlpm.rnb=tblstCat[[#This Row],[Vorname]])),\"\"))","v":"aktiv"}]
[null,"Brighenti","Thessa","aktiv",null,null,"Breyer","Sophia",{"$f":"_xlfn.LET(_xlpm.rna,tblPersis[Nachname],_xlpm.rnb,tblPersis[Vorname],IFERROR(_xlfn._xlws.FILTER(tblPersis[Gruppe],(_xlpm.rna=tblstCat[[#This Row],[Nachname]])*(_xlpm.rnb=tblstCat[[#This Row],[Vorname]])),\"\"))","v":"aktiv"}]
[null,"Brosch","Melanie","BV - MS - EZ",null,null,"Brhane Getahun","Tsion",{"$f":"_xlfn.LET(_xlpm.rna,tblPersis[Nachname],_xlpm.rnb,tblPersis[Vorname],IFERROR(_xlfn._xlws.FILTER(tblPersis[Gruppe],(_xlpm.rna=tblstCat[[#This Row],[Nachname]])*(_xlpm.rnb=tblstCat[[#This Row],[Vorname]])),\"\"))","v":"aktiv"}]
[null,"Brößler","Anna-Lena","aktiv",null,null,"Brighenti","Thessa",{"$f":"_xlfn.LET(_xlpm.rna,tblPersis[Nachname],_xlpm.rnb,tblPersis[Vorname],IFERROR(_xlfn._xlws.FILTER(tblPersis[Gruppe],(_xlpm.rna=tblstCat[[#This Row],[Nachname]])*(_xlpm.rnb=tblstCat[[#This Row],[Vorname]])),\"\"))","v":"aktiv"}]
[null,"Brown","Kisha","aktiv",null,null,"Brosch","Melanie",{"$f":"_xlfn.LET(_xlpm.rna,tblPersis[Nachname],_xlpm.rnb,tblPersis[Vorname],IFERROR(_xlfn._xlws.FILTER(tblPersis[Gruppe],(_xlpm.rna=tblstCat[[#This Row],[Nachname]])*(_xlpm.rnb=tblstCat[[#This Row],[Vorname]])),\"\"))","v":"BV - MS - EZ"}]
[null,"Brunner","Claudia","aktiv",null,null,"Brößler","Anna-Lena",{"$f":"_xlfn.LET(_xlpm.rna,tblPersis[Nachname],_xlpm.rnb,tblPersis[Vorname],IFERROR(_xlfn._xlws.FILTER(tblPersis[Gruppe],(_xlpm.rna=tblstCat[[#This Row],[Nachname]])*(_xlpm.rnb=tblstCat[[#This Row],[Vorname]])),\"\"))","v":"aktiv"}]
[null,"Brunner","Stefanie","aktiv",null,null,"Brown","Kisha",{"$f":"_xlfn.LET(_xlpm.rna,tblPersis[Nachname],_xlpm.rnb,tblPersis[Vorname],IFERROR(_xlfn._xlws.FILTER(tblPersis[Gruppe],(_xlpm.rna=tblstCat[[#This Row],[Nachname]])*(_xlpm.rnb=tblstCat[[#This Row],[Vorname]])),\"\"))","v":"aktiv"}]
[null,"Brust","Stefanie","aktiv",null,null,"Brunner","Claudia",{"$f":"_xlfn.LET(_xlpm.rna,tblPersis[Nachname],_xlpm.rnb,tblPersis[Vorname],IFERROR(_xlfn._xlws.FILTER(tblPersis[Gruppe],(_xlpm.rna=tblstCat[[#This Row],[Nachname]])*(_xlpm.rnb=tblstCat[[#This Row],[Vorname]])),\"\"))","v":"aktiv"}]
[null,"Brutscher","Christl","aktiv",null,null,"Brunner","Stefanie",{"$f":"_xlfn.LET(_xlpm.rna,tblPersis[Nachname],_xlpm.rnb,tblPersis[Vorname],IFERROR(_xlfn._xlws.FILTER(tblPersis[Gruppe],(_xlpm.rna=tblstCat[[#This Row],[Nachname]])*(_xlpm.rnb=tblstCat[[#This Row],[Vorname]])),\"\"))","v":"aktiv"}]
[null,"Buchinger","Kerstin","aktiv",null,null,"Brust","Stefanie",{"$f":"_xlfn.LET(_xlpm.rna,tblPersis[Nachname],_xlpm.rnb,tblPersis[Vorname],IFERROR(_xlfn._xlws.FILTER(tblPersis[Gruppe],(_xlpm.rna=tblstCat[[#This Row],[Nachname]])*(_xlpm.rnb=tblstCat[[#This Row],[Vorname]])),\"\"))","v":"aktiv"}]
[null,"Buchmeier","Brit","aktiv",null,null,"Brutscher","Christa",{"$f":"_xlfn.LET(_xlpm.rna,tblPersis[Nachname],_xlpm.rnb,tblPersis[Vorname],IFERROR(_xlfn._xlws.FILTER(tblPersis[Gruppe],(_xlpm.rna=tblstCat[[#This Row],[Nachname]])*(_xlpm.rnb=tblstCat[[#This Row],[Vorname]])),\"\"))","v":""}]
[null,"Budreikaite","Brigita","aktiv",null,null,"Buchinger","Kerstin",{"$f":"_xlfn.LET(_xlpm.rna,tblPersis[Nachname],_xlpm.rnb,tblPersis[Vorname],IFERROR(_xlfn._xlws.FILTER(tblPersis[Gruppe],(_xlpm.rna=tblstCat[[#This Row],[Nachname]])*(_xlpm.rnb=tblstCat[[#This Row],[Vorname]])),\"\"))","v":"aktiv"}]
[null,"Buhse","Isabel","aktiv",null,null,"Buchmeier","Brit",{"$f":"_xlfn.LET(_xlpm.rna,tblPersis[Nachname],_xlpm.rnb,tblPersis[Vorname],IFERROR(_xlfn._xlws.FILTER(tblPersis[Gruppe],(_xlpm.rna=tblstCat[[#This Row],[Nachname]])*(_xlpm.rnb=tblstCat[[#This Row],[Vorname]])),\"\"))","v":"aktiv"}]
[null,"Burger Hernandez","Janine","aktiv",null,null,"Budreikaite","Brigita",{"$f":"_xlfn.LET(_xlpm.rna,tblPersis[Nachname],_xlpm.rnb,tblPersis[Vorname],IFERROR(_xlfn._xlws.FILTER(tblPersis[Gruppe],(_xlpm.rna=tblstCat[[#This Row],[Nachname]])*(_xlpm.rnb=tblstCat[[#This Row],[Vorname]])),\"\"))","v":"aktiv"}]
[null,"Burger-Agur","Margit","aktiv",null,null,"Buhse","Isabel",{"$f":"_xlfn.LET(_xlpm.rna,tblPersis[Nachname],_xlpm.rnb,tblPersis[Vorname],IFERROR(_xlfn._xlws.FILTER(tblPersis[Gruppe],(_xlpm.rna=tblstCat[[#This Row],[Nachname]])*(_xlpm.rnb=tblstCat[[#This Row],[Vorname]])),\"\"))","v":"aktiv"}]
[null,"Bürgle","Isabella","aktiv",null,null,"Burger Hernandez","Janine",{"$f":"_xlfn.LET(_xlpm.rna,tblPersis[Nachname],_xlpm.rnb,tblPersis[Vorname],IFERROR(_xlfn._xlws.FILTER(tblPersis[Gruppe],(_xlpm.rna=tblstCat[[#This Row],[Nachname]])*(_xlpm.rnb=tblstCat[[#This Row],[Vorname]])),\"\"))","v":"aktiv"}]
[null,"Burhenne","Josephine","BV - MS - EZ",null,null,"Burger-Agur","Margit",{"$f":"_xlfn.LET(_xlpm.rna,tblPersis[Nachname],_xlpm.rnb,tblPersis[Vorname],IFERROR(_xlfn._xlws.FILTER(tblPersis[Gruppe],(_xlpm.rna=tblstCat[[#This Row],[Nachname]])*(_xlpm.rnb=tblstCat[[#This Row],[Vorname]])),\"\"))","v":"aktiv"}]
[null,"Burkhardt","Heike","aktiv",null,null,"Bürgle","Isabella",{"$f":"_xlfn.LET(_xlpm.rna,tblPersis[Nachname],_xlpm.rnb,tblPersis[Vorname],IFERROR(_xlfn._xlws.FILTER(tblPersis[Gruppe],(_xlpm.rna=tblstCat[[#This Row],[Nachname]])*(_xlpm.rnb=tblstCat[[#This Row],[Vorname]])),\"\"))","v":"aktiv"}]
[null,"Burkhardt","Rebecca","BV - MS - EZ",null,null,"Burhenne","Josephine",{"$f":"_xlfn.LET(_xlpm.rna,tblPersis[Nachname],_xlpm.rnb,tblPersis[Vorname],IFERROR(_xlfn._xlws.FILTER(tblPersis[Gruppe],(_xlpm.rna=tblstCat[[#This Row],[Nachname]])*(_xlpm.rnb=tblstCat[[#This Row],[Vorname]])),\"\"))","v":"BV - MS - EZ"}]
[null,"Büter","Carolin","aktiv",null,null,"Burkhardt","Heike",{"$f":"_xlfn.LET(_xlpm.rna,tblPersis[Nachname],_xlpm.rnb,tblPersis[Vorname],IFERROR(_xlfn._xlws.FILTER(tblPersis[Gruppe],(_xlpm.rna=tblstCat[[#This Row],[Nachname]])*(_xlpm.rnb=tblstCat[[#This Row],[Vorname]])),\"\"))","v":"aktiv"}]
[null,"Büttner","Jennifer","BV - MS - EZ",null,null,"Burkhardt","Rebecca",{"$f":"_xlfn.LET(_xlpm.rna,tblPersis[Nachname],_xlpm.rnb,tblPersis[Vorname],IFERROR(_xlfn._xlws.FILTER(tblPersis[Gruppe],(_xlpm.rna=tblstCat[[#This Row],[Nachname]])*(_xlpm.rnb=tblstCat[[#This Row],[Vorname]])),\"\"))","v":"BV - MS - EZ"}]
[null,"Butz","Brigitte","aktiv",null,null,"Büter","Carolin",{"$f":"_xlfn.LET(_xlpm.rna,tblPersis[Nachname],_xlpm.rnb,tblPersis[Vorname],IFERROR(_xlfn._xlws.FILTER(tblPersis[Gruppe],(_xlpm.rna=tblstCat[[#This Row],[Nachname]])*(_xlpm.rnb=tblstCat[[#This Row],[Vorname]])),\"\"))","v":"aktiv"}]
[null,"Butzmann","Laura","BV - MS - EZ",null,null,"Büttner","Jennifer",{"$f":"_xlfn.LET(_xlpm.rna,tblPersis[Nachname],_xlpm.rnb,tblPersis[Vorname],IFERROR(_xlfn._xlws.FILTER(tblPersis[Gruppe],(_xlpm.rna=tblstCat[[#This Row],[Nachname]])*(_xlpm.rnb=tblstCat[[#This Row],[Vorname]])),\"\"))","v":"BV - MS - EZ"}]
[null,"Calabrese","Susanne","aktiv",null,null,"Butz","Brigitte",{"$f":"_xlfn.LET(_xlpm.rna,tblPersis[Nachname],_xlpm.rnb,tblPersis[Vorname],IFERROR(_xlfn._xlws.FILTER(tblPersis[Gruppe],(_xlpm.rna=tblstCat[[#This Row],[Nachname]])*(_xlpm.rnb=tblstCat[[#This Row],[Vorname]])),\"\"))","v":"aktiv"}]
[null,"Callies","Kornelia","aktiv",null,null,"Butzmann","Laura",{"$f":"_xlfn.LET(_xlpm.rna,tblPersis[Nachname],_xlpm.rnb,tblPersis[Vorname],IFERROR(_xlfn._xlws.FILTER(tblPersis[Gruppe],(_xlpm.rna=tblstCat[[#This Row],[Nachname]])*(_xlpm.rnb=tblstCat[[#This Row],[Vorname]])),\"\"))","v":"BV - MS - EZ"}]
[null,"Canzler","Jessica","aktiv",null,null,"Calabrese","Susanne",{"$f":"_xlfn.LET(_xlpm.rna,tblPersis[Nachname],_xlpm.rnb,tblPersis[Vorname],IFERROR(_xlfn._xlws.FILTER(tblPersis[Gruppe],(_xlpm.rna=tblstCat[[#This Row],[Nachname]])*(_xlpm.rnb=tblstCat[[#This Row],[Vorname]])),\"\"))","v":"aktiv"}]
[null,"Caputo","Maria","aktiv",null,null,"Callies","Kornelia",{"$f":"_xlfn.LET(_xlpm.rna,tblPersis[Nachname],_xlpm.rnb,tblPersis[Vorname],IFERROR(_xlfn._xlws.FILTER(tblPersis[Gruppe],(_xlpm.rna=tblstCat[[#This Row],[Nachname]])*(_xlpm.rnb=tblstCat[[#This Row],[Vorname]])),\"\"))","v":"aktiv"}]
[null,"Cavallo","Vera","aktiv",null,null,"Canzler","Jessica",{"$f":"_xlfn.LET(_xlpm.rna,tblPersis[Nachname],_xlpm.rnb,tblPersis[Vorname],IFERROR(_xlfn._xlws.FILTER(tblPersis[Gruppe],(_xlpm.rna=tblstCat[[#This Row],[Nachname]])*(_xlpm.rnb=tblstCat[[#This Row],[Vorname]])),\"\"))","v":"aktiv"}]
[null,"Cesko","Lydia","aktiv",null,null,"Caputo","Maria",{"$f":"_xlfn.LET(_xlpm.rna,tblPersis[Nachname],_xlpm.rnb,tblPersis[Vorname],IFERROR(_xlfn._xlws.FILTER(tblPersis[Gruppe],(_xlpm.rna=tblstCat[[#This Row],[Nachname]])*(_xlpm.rnb=tblstCat[[#This Row],[Vorname]])),\"\"))","v":"aktiv"}]
[null,null,null,null,null,null,"Cisneros","Bianca",{"$f":"_xlfn.LET(_xlpm.rna,tblPersis[Nachname],_xlpm.rnb,tblPersis[Vorname],IFERROR(_xlfn._xlws.FILTER(tblPersis[Gruppe],(_xlpm.rna=tblstCat[[#This Row],[Nachname]])*(_xlpm.rnb=tblstCat[[#This Row],[Vorname]])),\"\"))","v":""}]
[null,null,null,null,null,null,"Classen","Lara",{"$f":"_xlfn.LET(_xlpm.rna,tblPersis[Nachname],_xlpm.rnb,tblPersis[Vorname],IFERROR(_xlfn._xlws.FILTER(tblPersis[Gruppe],(_xlpm.rna=tblstCat[[#This Row],[Nachname]])*(_xlpm.rnb=tblstCat[[#This Row],[Vorname]])),\"\"))","v":""}]
[null,null,null,null,null,null,"Conrads","Martina ",{"$f":"_xlfn.LET(_xlpm.rna,tblPersis[Nachname],_xlpm.rnb,tblPersis[Vorname],IFERROR(_xlfn._xlws.FILTER(tblPersis[Gruppe],(_xlpm.rna=tblstCat[[#This Row],[Nachname]])*(_xlpm.rnb=tblstCat[[#This Row],[Vorname]])),\"\"))","v":""}]
[null,null,null,null,null,null,"Credico","Sonja",{"$f":"_xlfn.LET(_xlpm.rna,tblPersis[Nachname],_xlpm.rnb,tblPersis[Vorname],IFERROR(_xlfn._xlws.FILTER(tblPersis[Gruppe],(_xlpm.rna=tblstCat[[#This Row],[Nachname]])*(_xlpm.rnb=tblstCat[[#This Row],[Vorname]])),\"\"))","v":""}]
[null,null,null,null,null,null,"Cukur","Eda",{"$f":"_xlfn.LET(_xlpm.rna,tblPersis[Nachname],_xlpm.rnb,tblPersis[Vorname],IFERROR(_xlfn._xlws.FILTER(tblPersis[Gruppe],(_xlpm.rna=tblstCat[[#This Row],[Nachname]])*(_xlpm.rnb=tblstCat[[#This Row],[Vorname]])),\"\"))","v":""}]
[null,null,null,null,null,null,"Da Gloria Martins","Doris",{"$f":"_xlfn.LET(_xlpm.rna,tblPersis[Nachname],_xlpm.rnb,tblPersis[Vorname],IFERROR(_xlfn._xlws.FILTER(tblPersis[Gruppe],(_xlpm.rna=tblstCat[[#This Row],[Nachname]])*(_xlpm.rnb=tblstCat[[#This Row],[Vorname]])),\"\"))","v":""}]
[null,null,null,null,null,null,"Da Silva Fonseca","Valentina",{"$f":"_xlfn.LET(_xlpm.rna,tblPersis[Nachname],_xlpm.rnb,tblPersis[Vorname],IFERROR(_xlfn._xlws.FILTER(tblPersis[Gruppe],(_xlpm.rna=tblstCat[[#This Row],[Nachname]])*(_xlpm.rnb=tblstCat[[#This Row],[Vorname]])),\"\"))","v":""}]
[null,null,null,null,null,null,"Da Silva Serr","Marcia Janine",{"$f":"_xlfn.LET(_xlpm.rna,tblPersis[Nachname],_xlpm.rnb,tblPersis[Vorname],IFERROR(_xlfn._xlws.FILTER(tblPersis[Gruppe],(_xlpm.rna=tblstCat[[#This Row],[Nachname]])*(_xlpm.rnb=tblstCat[[#This Row],[Vorname]])),\"\"))","v":""}]
[null,null,null,null,null,null,"Dadas","Ülkügül",{"$f":"_xlfn.LET(_xlpm.rna,tblPersis[Nachname],_xlpm.rnb,tblPersis[Vorname],IFERROR(_xlfn._xlws.FILTER(tblPersis[Gruppe],(_xlpm.rna=tblstCat[[#This Row],[Nachname]])*(_xlpm.rnb=tblstCat[[#This Row],[Vorname]])),\"\"))","v":""}]
[null,null,null,null,null,null,"Dahmen","Nicole",{"$f":"_xlfn.LET(_xlpm.rna,tblPersis[Nachname],_xlpm.rnb,tblPersis[Vorname],IFERROR(_xlfn._xlws.FILTER(tblPersis[Gruppe],(_xlpm.rna=tblstCat[[#This Row],[Nachname]])*(_xlpm.rnb=tblstCat[[#This Row],[Vorname]])),\"\"))","v":""}]
[null,null,null,null,null,null,"Dakaj","Luljete",{"$f":"_xlfn.LET(_xlpm.rna,tblPersis[Nachname],_xlpm.rnb,tblPersis[Vorname],IFERROR(_xlfn._xlws.FILTER(tblPersis[Gruppe],(_xlpm.rna=tblstCat[[#This Row],[Nachname]])*(_xlpm.rnb=tblstCat[[#This Row],[Vorname]])),\"\"))","v":""}]
[null,null,null,null,null,null,"Dammer","Stephanie",{"$f":"_xlfn.LET(_xlpm.rna,tblPersis[Nachname],_xlpm.rnb,tblPersis[Vorname],IFERROR(_xlfn._xlws.FILTER(tblPersis[Gruppe],(_xlpm.rna=tblstCat[[#This Row],[Nachname]])*(_xlpm.rnb=tblstCat[[#This Row],[Vorname]])),\"\"))","v":""}]
[null,null,null,null,null,null,"De Seta","Vivien",{"$f":"_xlfn.LET(_xlpm.rna,tblPersis[Nachname],_xlpm.rnb,tblPersis[Vorname],IFERROR(_xlfn._xlws.FILTER(tblPersis[Gruppe],(_xlpm.rna=tblstCat[[#This Row],[Nachname]])*(_xlpm.rnb=tblstCat[[#This Row],[Vorname]])),\"\"))","v":""}]
[null,null,null,null,null,null,"Delling","Maria",{"$f":"_xlfn.LET(_xlpm.rna,tblPersis[Nachname],_xlpm.rnb,tblPersis[Vorname],IFERROR(_xlfn._xlws.FILTER(tblPersis[Gruppe],(_xlpm.rna=tblstCat[[#This Row],[Nachname]])*(_xlpm.rnb=tblstCat[[#This Row],[Vorname]])),\"\"))","v":""}]
[null,null,null,null,null,null,"Dema","Jennifer",{"$f":"_xlfn.LET(_xlpm.rna,tblPersis[Nachname],_xlpm.rnb,tblPersis[Vorname],IFERROR(_xlfn._xlws.FILTER(tblPersis[Gruppe],(_xlpm.rna=tblstCat[[#This Row],[Nachname]])*(_xlpm.rnb=tblstCat[[#This Row],[Vorname]])),\"\"))","v":""}]
[null,null,null,null,null,null,"Demirok","Emine",{"$f":"_xlfn.LET(_xlpm.rna,tblPersis[Nachname],_xlpm.rnb,tblPersis[Vorname],IFERROR(_xlfn._xlws.FILTER(tblPersis[Gruppe],(_xlpm.rna=tblstCat[[#This Row],[Nachname]])*(_xlpm.rnb=tblstCat[[#This Row],[Vorname]])),\"\"))","v":""}]
[null,null,null,null,null,null,"Deml","Christian",{"$f":"_xlfn.LET(_xlpm.rna,tblPersis[Nachname],_xlpm.rnb,tblPersis[Vorname],IFERROR(_xlfn._xlws.FILTER(tblPersis[Gruppe],(_xlpm.rna=tblstCat[[#This Row],[Nachname]])*(_xlpm.rnb=tblstCat[[#This Row],[Vorname]])),\"\"))","v":""}]
[null,null,null,null,null,null,"Dering","Eugenia",{"$f":"_xlfn.LET(_xlpm.rna,tblPersis[Nachname],_xlpm.rnb,tblPersis[Vorname],IFERROR(_xlfn._xlws.FILTER(tblPersis[Gruppe],(_xlpm.rna=tblstCat[[#This Row],[Nachname]])*(_xlpm.rnb=tblstCat[[#This Row],[Vorname]])),\"\"))","v":""}]
[null,null,null,null,null,null,"Derman","Hidaya",{"$f":"_xlfn.LET(_xlpm.rna,tblPersis[Nachname],_xlpm.rnb,tblPersis[Vorname],IFERROR(_xlfn._xlws.FILTER(tblPersis[Gruppe],(_xlpm.rna=tblstCat[[#This Row],[Nachname]])*(_xlpm.rnb=tblstCat[[#This Row],[Vorname]])),\"\"))","v":""}]
[null,null,null,null,null,null,"Deubel","Barbara",{"$f":"_xlfn.LET(_xlpm.rna,tblPersis[Nachname],_xlpm.rnb,tblPersis[Vorname],IFERROR(_xlfn._xlws.FILTER(tblPersis[Gruppe],(_xlpm.rna=tblstCat[[#This Row],[Nachname]])*(_xlpm.rnb=tblstCat[[#This Row],[Vorname]])),\"\"))","v":""}]
[null,null,null,null,null,null,"Deuerlein","Christine",{"$f":"_xlfn.LET(_xlpm.rna,tblPersis[Nachname],_xlpm.rnb,tblPersis[Vorname],IFERROR(_xlfn._xlws.FILTER(tblPersis[Gruppe],(_xlpm.rna=tblstCat[[#This Row],[Nachname]])*(_xlpm.rnb=tblstCat[[#This Row],[Vorname]])),\"\"))","v":""}]
[null,null,null,null,null,null,"Di Biase","Maria",{"$f":"_xlfn.LET(_xlpm.rna,tblPersis[Nachname],_xlpm.rnb,tblPersis[Vorname],IFERROR(_xlfn._xlws.FILTER(tblPersis[Gruppe],(_xlpm.rna=tblstCat[[#This Row],[Nachname]])*(_xlpm.rnb=tblstCat[[#This Row],[Vorname]])),\"\"))","v":""}]
[null,null,null,null,null,null,"Di Marcoberardino","Belinda",{"$f":"_xlfn.LET(_xlpm.rna,tblPersis[Nachname],_xlpm.rnb,tblPersis[Vorname],IFERROR(_xlfn._xlws.FILTER(tblPersis[Gruppe],(_xlpm.rna=tblstCat[[#This Row],[Nachname]])*(_xlpm.rnb=tblstCat[[#This Row],[Vorname]])),\"\"))","v":""}]
[null,null,null,null,null,null,"Dianow","Alwina",{"$f":"_xlfn.LET(_xlpm.rna,tblPersis[Nachname],_xlpm.rnb,tblPersis[Vorname],IFERROR(_xlfn._xlws.FILTER(tblPersis[Gruppe],(_xlpm.rna=tblstCat[[#This Row],[Nachname]])*(_xlpm.rnb=tblstCat[[#This Row],[Vorname]])),\"\"))","v":""}]
[null,null,null,null,null,null,"Diede","Jule-Marie",{"$f":"_xlfn.LET(_xlpm.rna,tblPersis[Nachname],_xlpm.rnb,tblPersis[Vorname],IFERROR(_xlfn._xlws.FILTER(tblPersis[Gruppe],(_xlpm.rna=tblstCat[[#This Row],[Nachname]])*(_xlpm.rnb=tblstCat[[#This Row],[Vorname]])),\"\"))","v":""}]
[null,null,null,null,null,null,"Dieser","Angelika",{"$f":"_xlfn.LET(_xlpm.rna,tblPersis[Nachname],_xlpm.rnb,tblPersis[Vorname],IFERROR(_xlfn._xlws.FILTER(tblPersis[Gruppe],(_xlpm.rna=tblstCat[[#This Row],[Nachname]])*(_xlpm.rnb=tblstCat[[#This Row],[Vorname]])),\"\"))","v":""}]
[null,null,null,null,null,null,"Dietz","Martina",{"$f":"_xlfn.LET(_xlpm.rna,tblPersis[Nachname],_xlpm.rnb,tblPersis[Vorname],IFERROR(_xlfn._xlws.FILTER(tblPersis[Gruppe],(_xlpm.rna=tblstCat[[#This Row],[Nachname]])*(_xlpm.rnb=tblstCat[[#This Row],[Vorname]])),\"\"))","v":""}]
[null,null,null,null,null,null,"Dilekci","Kerstin",{"$f":"_xlfn.LET(_xlpm.rna,tblPersis[Nachname],_xlpm.rnb,tblPersis[Vorname],IFERROR(_xlfn._xlws.FILTER(tblPersis[Gruppe],(_xlpm.rna=tblstCat[[#This Row],[Nachname]])*(_xlpm.rnb=tblstCat[[#This Row],[Vorname]])),\"\"))","v":""}]
[null,null,null,null,null,null,"Dimitrov","Ivonne",{"$f":"_xlfn.LET(_xlpm.rna,tblPersis[Nachname],_xlpm.rnb,tblPersis[Vorname],IFERROR(_xlfn._xlws.FILTER(tblPersis[Gruppe],(_xlpm.rna=tblstCat[[#This Row],[Nachname]])*(_xlpm.rnb=tblstCat[[#This Row],[Vorname]])),\"\"))","v":""}]
[null,null,null,null,null,null,"Dionzon","Janine",{"$f":"_xlfn.LET(_xlpm.rna,tblPersis[Nachname],_xlpm.rnb,tblPersis[Vorname],IFERROR(_xlfn._xlws.FILTER(tblPersis[Gruppe],(_xlpm.rna=tblstCat[[#This Row],[Nachname]])*(_xlpm.rnb=tblstCat[[#This Row],[Vorname]])),\"\"))","v":""}]
[null,null,null,null,null,null,"Dittenhauser","Regina",{"$f":"_xlfn.LET(_xlpm.rna,tblPersis[Nachname],_xlpm.rnb,tblPersis[Vorname],IFERROR(_xlfn._xlws.FILTER(tblPersis[Gruppe],(_xlpm.rna=tblstCat[[#This Row],[Nachname]])*(_xlpm.rnb=tblstCat[[#This Row],[Vorname]])),\"\"))","v":""}]
[null,null,null,null,null,null,"Dittmar","Sabine",{"$f":"_xlfn.LET(_xlpm.rna,tblPersis[Nachname],_xlpm.rnb,tblPersis[Vorname],IFERROR(_xlfn._xlws.FILTER(tblPersis[Gruppe],(_xlpm.rna=tblstCat[[#This Row],[Nachname]])*(_xlpm.rnb=tblstCat[[#This Row],[Vorname]])),\"\"))","v":""}]
[null,null,null,null,null,null,"Divora","Katrin",{"$f":"_xlfn.LET(_xlpm.rna,tblPersis[Nachname],_xlpm.rnb,tblPersis[Vorname],IFERROR(_xlfn._xlws.FILTER(tblPersis[Gruppe],(_xlpm.rna=tblstCat[[#This Row],[Nachname]])*(_xlpm.rnb=tblstCat[[#This Row],[Vorname]])),\"\"))","v":""}]
[null,null,null,null,null,null,"Döbereiner","Tanja",{"$f":"_xlfn.LET(_xlpm.rna,tblPersis[Nachname],_xlpm.rnb,tblPersis[Vorname],IFERROR(_xlfn._xlws.FILTER(tblPersis[Gruppe],(_xlpm.rna=tblstCat[[#This Row],[Nachname]])*(_xlpm.rnb=tblstCat[[#This Row],[Vorname]])),\"\"))","v":""}]
[null,null,null,null,null,null,"Dogan Akkas","Sengül",{"$f":"_xlfn.LET(_xlpm.rna,tblPersis[Nachname],_xlpm.rnb,tblPersis[Vorname],IFERROR(_xlfn._xlws.FILTER(tblPersis[Gruppe],(_xlpm.rna=tblstCat[[#This Row],[Nachname]])*(_xlpm.rnb=tblstCat[[#This Row],[Vorname]])),\"\"))","v":""}]
[null,null,null,null,null,null,"Doll","Daniela",{"$f":"_xlfn.LET(_xlpm.rna,tblPersis[Nachname],_xlpm.rnb,tblPersis[Vorname],IFERROR(_xlfn._xlws.FILTER(tblPersis[Gruppe],(_xlpm.rna=tblstCat[[#This Row],[Nachname]])*(_xlpm.rnb=tblstCat[[#This Row],[Vorname]])),\"\"))","v":""}]
[null,null,null,null,null,null,"Dorfner","Michaela",{"$f":"_xlfn.LET(_xlpm.rna,tblPersis[Nachname],_xlpm.rnb,tblPersis[Vorname],IFERROR(_xlfn._xlws.FILTER(tblPersis[Gruppe],(_xlpm.rna=tblstCat[[#This Row],[Nachname]])*(_xlpm.rnb=tblstCat[[#This Row],[Vorname]])),\"\"))","v":""}]
[null,null,null,null,null,null,"Doriat","Manuela",{"$f":"_xlfn.LET(_xlpm.rna,tblPersis[Nachname],_xlpm.rnb,tblPersis[Vorname],IFERROR(_xlfn._xlws.FILTER(tblPersis[Gruppe],(_xlpm.rna=tblstCat[[#This Row],[Nachname]])*(_xlpm.rnb=tblstCat[[#This Row],[Vorname]])),\"\"))","v":""}]
[null,null,null,null,null,null,"Dorrer","Katrina",{"$f":"_xlfn.LET(_xlpm.rna,tblPersis[Nachname],_xlpm.rnb,tblPersis[Vorname],IFERROR(_xlfn._xlws.FILTER(tblPersis[Gruppe],(_xlpm.rna=tblstCat[[#This Row],[Nachname]])*(_xlpm.rnb=tblstCat[[#This Row],[Vorname]])),\"\"))","v":""}]
[null,null,null,null,null,null,"Dorsch","Natascha",{"$f":"_xlfn.LET(_xlpm.rna,tblPersis[Nachname],_xlpm.rnb,tblPersis[Vorname],IFERROR(_xlfn._xlws.FILTER(tblPersis[Gruppe],(_xlpm.rna=tblstCat[[#This Row],[Nachname]])*(_xlpm.rnb=tblstCat[[#This Row],[Vorname]])),\"\"))","v":""}]
[null,null,null,null,null,null,"Dreger","Birgit",{"$f":"_xlfn.LET(_xlpm.rna,tblPersis[Nachname],_xlpm.rnb,tblPersis[Vorname],IFERROR(_xlfn._xlws.FILTER(tblPersis[Gruppe],(_xlpm.rna=tblstCat[[#This Row],[Nachname]])*(_xlpm.rnb=tblstCat[[#This Row],[Vorname]])),\"\"))","v":""}]
[null,null,null,null,null,null,"Dresel","Tanja",{"$f":"_xlfn.LET(_xlpm.rna,tblPersis[Nachname],_xlpm.rnb,tblPersis[Vorname],IFERROR(_xlfn._xlws.FILTER(tblPersis[Gruppe],(_xlpm.rna=tblstCat[[#This Row],[Nachname]])*(_xlpm.rnb=tblstCat[[#This Row],[Vorname]])),\"\"))","v":""}]
[null,null,null,null,null,null,"Drexl","Daniela",{"$f":"_xlfn.LET(_xlpm.rna,tblPersis[Nachname],_xlpm.rnb,tblPersis[Vorname],IFERROR(_xlfn._xlws.FILTER(tblPersis[Gruppe],(_xlpm.rna=tblstCat[[#This Row],[Nachname]])*(_xlpm.rnb=tblstCat[[#This Row],[Vorname]])),\"\"))","v":""}]
[null,null,null,null,null,null,"Duffek","Barbara",{"$f":"_xlfn.LET(_xlpm.rna,tblPersis[Nachname],_xlpm.rnb,tblPersis[Vorname],IFERROR(_xlfn._xlws.FILTER(tblPersis[Gruppe],(_xlpm.rna=tblstCat[[#This Row],[Nachname]])*(_xlpm.rnb=tblstCat[[#This Row],[Vorname]])),\"\"))","v":""}]
[null,null,null,null,null,null,"Dümler","Jennifer",{"$f":"_xlfn.LET(_xlpm.rna,tblPersis[Nachname],_xlpm.rnb,tblPersis[Vorname],IFERROR(_xlfn._xlws.FILTER(tblPersis[Gruppe],(_xlpm.rna=tblstCat[[#This Row],[Nachname]])*(_xlpm.rnb=tblstCat[[#This Row],[Vorname]])),\"\"))","v":""}]
[null,null,null,null,null,null,"Dümmler","Renate",{"$f":"_xlfn.LET(_xlpm.rna,tblPersis[Nachname],_xlpm.rnb,tblPersis[Vorname],IFERROR(_xlfn._xlws.FILTER(tblPersis[Gruppe],(_xlpm.rna=tblstCat[[#This Row],[Nachname]])*(_xlpm.rnb=tblstCat[[#This Row],[Vorname]])),\"\"))","v":""}]
[null,null,null,null,null,null,"Dünßer","Ramona",{"$f":"_xlfn.LET(_xlpm.rna,tblPersis[Nachname],_xlpm.rnb,tblPersis[Vorname],IFERROR(_xlfn._xlws.FILTER(tblPersis[Gruppe],(_xlpm.rna=tblstCat[[#This Row],[Nachname]])*(_xlpm.rnb=tblstCat[[#This Row],[Vorname]])),\"\"))","v":""}]
[null,null,null,null,null,null,"Durchdenwald","Sandra",{"$f":"_xlfn.LET(_xlpm.rna,tblPersis[Nachname],_xlpm.rnb,tblPersis[Vorname],IFERROR(_xlfn._xlws.FILTER(tblPersis[Gruppe],(_xlpm.rna=tblstCat[[#This Row],[Nachname]])*(_xlpm.rnb=tblstCat[[#This Row],[Vorname]])),\"\"))","v":""}]
[null,null,null,null,null,null,"Dürr","Nadine",{"$f":"_xlfn.LET(_xlpm.rna,tblPersis[Nachname],_xlpm.rnb,tblPersis[Vorname],IFERROR(_xlfn._xlws.FILTER(tblPersis[Gruppe],(_xlpm.rna=tblstCat[[#This Row],[Nachname]])*(_xlpm.rnb=tblstCat[[#This Row],[Vorname]])),\"\"))","v":""}]
[null,null,null,null,null,null,"Duscher","Stefanie",{"$f":"_xlfn.LET(_xlpm.rna,tblPersis[Nachname],_xlpm.rnb,tblPersis[Vorname],IFERROR(_xlfn._xlws.FILTER(tblPersis[Gruppe],(_xlpm.rna=tblstCat[[#This Row],[Nachname]])*(_xlpm.rnb=tblstCat[[#This Row],[Vorname]])),\"\"))","v":""}]
[null,null,null,null,null,null,"Düvelmeyer","Melanie",{"$f":"_xlfn.LET(_xlpm.rna,tblPersis[Nachname],_xlpm.rnb,tblPersis[Vorname],IFERROR(_xlfn._xlws.FILTER(tblPersis[Gruppe],(_xlpm.rna=tblstCat[[#This Row],[Nachname]])*(_xlpm.rnb=tblstCat[[#This Row],[Vorname]])),\"\"))","v":""}]
[null,null,null,null,null,null,"Dylnicka-Antes","Barbara",{"$f":"_xlfn.LET(_xlpm.rna,tblPersis[Nachname],_xlpm.rnb,tblPersis[Vorname],IFERROR(_xlfn._xlws.FILTER(tblPersis[Gruppe],(_xlpm.rna=tblstCat[[#This Row],[Nachname]])*(_xlpm.rnb=tblstCat[[#This Row],[Vorname]])),\"\"))","v":""}]
[null,null,null,null,null,null,"Eber","Laura",{"$f":"_xlfn.LET(_xlpm.rna,tblPersis[Nachname],_xlpm.rnb,tblPersis[Vorname],IFERROR(_xlfn._xlws.FILTER(tblPersis[Gruppe],(_xlpm.rna=tblstCat[[#This Row],[Nachname]])*(_xlpm.rnb=tblstCat[[#This Row],[Vorname]])),\"\"))","v":""}]
[null,null,null,null,null,null,"Eberhartinger","Gertraud",{"$f":"_xlfn.LET(_xlpm.rna,tblPersis[Nachname],_xlpm.rnb,tblPersis[Vorname],IFERROR(_xlfn._xlws.FILTER(tblPersis[Gruppe],(_xlpm.rna=tblstCat[[#This Row],[Nachname]])*(_xlpm.rnb=tblstCat[[#This Row],[Vorname]])),\"\"))","v":""}]
[null,null,null,null,null,null,"Eberlein","Petra",{"$f":"_xlfn.LET(_xlpm.rna,tblPersis[Nachname],_xlpm.rnb,tblPersis[Vorname],IFERROR(_xlfn._xlws.FILTER(tblPersis[Gruppe],(_xlpm.rna=tblstCat[[#This Row],[Nachname]])*(_xlpm.rnb=tblstCat[[#This Row],[Vorname]])),\"\"))","v":""}]
[null,null,null,null,null,null,"Ebner","Diana",{"$f":"_xlfn.LET(_xlpm.rna,tblPersis[Nachname],_xlpm.rnb,tblPersis[Vorname],IFERROR(_xlfn._xlws.FILTER(tblPersis[Gruppe],(_xlpm.rna=tblstCat[[#This Row],[Nachname]])*(_xlpm.rnb=tblstCat[[#This Row],[Vorname]])),\"\"))","v":""}]
[null,null,null,null,null,null,"Eckert","Jasmin",{"$f":"_xlfn.LET(_xlpm.rna,tblPersis[Nachname],_xlpm.rnb,tblPersis[Vorname],IFERROR(_xlfn._xlws.FILTER(tblPersis[Gruppe],(_xlpm.rna=tblstCat[[#This Row],[Nachname]])*(_xlpm.rnb=tblstCat[[#This Row],[Vorname]])),\"\"))","v":""}]
[null,null,null,null,null,null,"Eckl","Tanja",{"$f":"_xlfn.LET(_xlpm.rna,tblPersis[Nachname],_xlpm.rnb,tblPersis[Vorname],IFERROR(_xlfn._xlws.FILTER(tblPersis[Gruppe],(_xlpm.rna=tblstCat[[#This Row],[Nachname]])*(_xlpm.rnb=tblstCat[[#This Row],[Vorname]])),\"\"))","v":""}]
[null,null,null,null,null,null,"Eckmüller","Ursula",{"$f":"_xlfn.LET(_xlpm.rna,tblPersis[Nachname],_xlpm.rnb,tblPersis[Vorname],IFERROR(_xlfn._xlws.FILTER(tblPersis[Gruppe],(_xlpm.rna=tblstCat[[#This Row],[Nachname]])*(_xlpm.rnb=tblstCat[[#This Row],[Vorname]])),\"\"))","v":""}]
[null,null,null,null,null,null,"Eckmüller","Maik",{"$f":"_xlfn.LET(_xlpm.rna,tblPersis[Nachname],_xlpm.rnb,tblPersis[Vorname],IFERROR(_xlfn._xlws.FILTER(tblPersis[Gruppe],(_xlpm.rna=tblstCat[[#This Row],[Nachname]])*(_xlpm.rnb=tblstCat[[#This Row],[Vorname]])),\"\"))","v":""}]
[null,null,null,null,null,null,"Edel","Rabea",{"$f":"_xlfn.LET(_xlpm.rna,tblPersis[Nachname],_xlpm.rnb,tblPersis[Vorname],IFERROR(_xlfn._xlws.FILTER(tblPersis[Gruppe],(_xlpm.rna=tblstCat[[#This Row],[Nachname]])*(_xlpm.rnb=tblstCat[[#This Row],[Vorname]])),\"\"))","v":""}]
[null,null,null,null,null,null,"Eder","Judith",{"$f":"_xlfn.LET(_xlpm.rna,tblPersis[Nachname],_xlpm.rnb,tblPersis[Vorname],IFERROR(_xlfn._xlws.FILTER(tblPersis[Gruppe],(_xlpm.rna=tblstCat[[#This Row],[Nachname]])*(_xlpm.rnb=tblstCat[[#This Row],[Vorname]])),\"\"))","v":""}]
[null,null,null,null,null,null,"Edl","Milena",{"$f":"_xlfn.LET(_xlpm.rna,tblPersis[Nachname],_xlpm.rnb,tblPersis[Vorname],IFERROR(_xlfn._xlws.FILTER(tblPersis[Gruppe],(_xlpm.rna=tblstCat[[#This Row],[Nachname]])*(_xlpm.rnb=tblstCat[[#This Row],[Vorname]])),\"\"))","v":""}]
[null,null,null,null,null,null,"Efetürk","Carina",{"$f":"_xlfn.LET(_xlpm.rna,tblPersis[Nachname],_xlpm.rnb,tblPersis[Vorname],IFERROR(_xlfn._xlws.FILTER(tblPersis[Gruppe],(_xlpm.rna=tblstCat[[#This Row],[Nachname]])*(_xlpm.rnb=tblstCat[[#This Row],[Vorname]])),\"\"))","v":""}]
[null,null,null,null,null,null,"Egger","Leyla",{"$f":"_xlfn.LET(_xlpm.rna,tblPersis[Nachname],_xlpm.rnb,tblPersis[Vorname],IFERROR(_xlfn._xlws.FILTER(tblPersis[Gruppe],(_xlpm.rna=tblstCat[[#This Row],[Nachname]])*(_xlpm.rnb=tblstCat[[#This Row],[Vorname]])),\"\"))","v":""}]
[null,null,null,null,null,null,"Eggermann","Christina",{"$f":"_xlfn.LET(_xlpm.rna,tblPersis[Nachname],_xlpm.rnb,tblPersis[Vorname],IFERROR(_xlfn._xlws.FILTER(tblPersis[Gruppe],(_xlpm.rna=tblstCat[[#This Row],[Nachname]])*(_xlpm.rnb=tblstCat[[#This Row],[Vorname]])),\"\"))","v":""}]
[null,null,null,null,null,null,"Eggersdorfer","Sabine",{"$f":"_xlfn.LET(_xlpm.rna,tblPersis[Nachname],_xlpm.rnb,tblPersis[Vorname],IFERROR(_xlfn._xlws.FILTER(tblPersis[Gruppe],(_xlpm.rna=tblstCat[[#This Row],[Nachname]])*(_xlpm.rnb=tblstCat[[#This Row],[Vorname]])),\"\"))","v":""}]
[null,null,null,null,null,null,"Eglseder","Nicole",{"$f":"_xlfn.LET(_xlpm.rna,tblPersis[Nachname],_xlpm.rnb,tblPersis[Vorname],IFERROR(_xlfn._xlws.FILTER(tblPersis[Gruppe],(_xlpm.rna=tblstCat[[#This Row],[Nachname]])*(_xlpm.rnb=tblstCat[[#This Row],[Vorname]])),\"\"))","v":""}]
[null,null,null,null,null,null,"Ehebauer","Sophie",{"$f":"_xlfn.LET(_xlpm.rna,tblPersis[Nachname],_xlpm.rnb,tblPersis[Vorname],IFERROR(_xlfn._xlws.FILTER(tblPersis[Gruppe],(_xlpm.rna=tblstCat[[#This Row],[Nachname]])*(_xlpm.rnb=tblstCat[[#This Row],[Vorname]])),\"\"))","v":""}]
[null,null,null,null,null,null,"Ehlich","Silke",{"$f":"_xlfn.LET(_xlpm.rna,tblPersis[Nachname],_xlpm.rnb,tblPersis[Vorname],IFERROR(_xlfn._xlws.FILTER(tblPersis[Gruppe],(_xlpm.rna=tblstCat[[#This Row],[Nachname]])*(_xlpm.rnb=tblstCat[[#This Row],[Vorname]])),\"\"))","v":""}]
[null,null,null,null,null,null,"Ehrhardt","Kathleen",{"$f":"_xlfn.LET(_xlpm.rna,tblPersis[Nachname],_xlpm.rnb,tblPersis[Vorname],IFERROR(_xlfn._xlws.FILTER(tblPersis[Gruppe],(_xlpm.rna=tblstCat[[#This Row],[Nachname]])*(_xlpm.rnb=tblstCat[[#This Row],[Vorname]])),\"\"))","v":""}]
[null,null,null,null,null,null,"Eiblmeier","Sonja",{"$f":"_xlfn.LET(_xlpm.rna,tblPersis[Nachname],_xlpm.rnb,tblPersis[Vorname],IFERROR(_xlfn._xlws.FILTER(tblPersis[Gruppe],(_xlpm.rna=tblstCat[[#This Row],[Nachname]])*(_xlpm.rnb=tblstCat[[#This Row],[Vorname]])),\"\"))","v":""}]
[null,null,null,null,null,null,"Eichenmüller","Martina",{"$f":"_xlfn.LET(_xlpm.rna,tblPersis[Nachname],_xlpm.rnb,tblPersis[Vorname],IFERROR(_xlfn._xlws.FILTER(tblPersis[Gruppe],(_xlpm.rna=tblstCat[[#This Row],[Nachname]])*(_xlpm.rnb=tblstCat[[#This Row],[Vorname]])),\"\"))","v":""}]